Workbook

Sheet Table
B2: Interest Rate Comparison
C4: 2016-08-23 | D4: 2018-09-28 | E4: Change | F4: Projected Q4 2019
B5: 10-year Treasury | C5: =AVERAGE(Bloomberg!V538:V567)/100 -> 0.01548666667 | D5: =AVERAGE(Bloomberg!V12:V41)/100 -> 0.02947333333 | E5: =D5-C5 -> 0.01398666667 | F5: =Summary!R7 -> 0.034
B6: 30-year Treasury | C6: =AVERAGE(Bloomberg!G538:G567)/100 -> 0.02264333333 | D6: =AVERAGE(Bloomberg!G12:G41)/100 -> 0.03096333333 | E6: =D6-C6 -> 0.00832 | F6: =Summary!R6 -> 0.037
B7: Moody’s A Utility Bond | C7: =AVERAGE(Bloomberg!L537:L566)/100 -> 0.03591666667 | D7: =AVERAGE(Bloomberg!L12:L41)/100 -> 0.04289333333 | E7: =D7-C7 -> 0.006976666667 | F7: =Summary!R5 -> 0.04915923159

Sheet Summary
C3: 2016.1 | D3: 2016.2 | E3: 2016.3 | F3: 2016.4 | G3: 2017.1 | H3: 2017.2 | I3: 2017.3 | J3: 2017.4 | K3: 2018.1 | L3: 2018.2 | M3: 2018.3 | N3: 2018.4 | O3: 2019.1 | P3: 2019.2 | Q3: 2019.3 | R3: 2019.4 | S3: 2020.1 | U3: Vertical Line
C4: 16 Q1 | D4: 16 Q2 | E4: 16 Q3 | F4: 16 Q4 | G4: 17 Q1 | H4: 17 Q2 | I4: 17 Q3 | J4: 17 Q4 | K4: 18 Q1 | L4: 18 Q2 | M4: 18 Q3 | N4: 18 Q4 | O4: 19 Q1 | P4: 19 Q2 | Q4: 19 Q3 | R4: 19 Q4 | S4: 20 Q1 | U4: X | V4: Y
B5: Moody's A Util. Bonds | C5: =AVERAGEIF(Bloomberg!$I:$I,C3,Bloomberg!$L:$L)/100 -> 0.04176229508 | D5: =AVERAGEIF(Bloomberg!$I:$I,D3,Bloomberg!$L:$L)/100 -> 0.0389796875 | E5: =AVERAGEIF(Bloomberg!$I:$I,E3,Bloomberg!$L:$L)/100 -> 0.03605625 | F5: =AVERAGEIF(Bloomberg!$I:$I,F3,Bloomberg!$L:$L)/100 -> 0.04044918033 | G5: =AVERAGEIF(Bloomberg!$I:$I,G3,Bloomberg!$L:$L)/100 -> 0.04184354839 | H5: =AVERAGEIF(Bloomberg!$I:$I,H3,Bloomberg!$L:$L)/100 -> 0.04058095238 | I5: =AVERAGEIF(Bloomberg!$I:$I,I3,Bloomberg!$L:$L)/100 -> 0.03905806452 | J5: =AVERAGEIF(Bloomberg!$I:$I,J3,Bloomberg!$L:$L)/100 -> 0.03847096774 | K5: =AVERAGEIF(Bloomberg!$I:$I,K3,Bloomberg!$L:$L)/100 -> 0.04024098361 | L5: =AVERAGEIF(Bloomberg!$I:$I,L3,Bloomberg!$L:$L)/100 -> 0.0424046875 | M5: =AVERAGEIF(Bloomberg!$I:$I,M$3,Bloomberg!$L:$L)/100 -> 0.04283015873 | N5: =N6+'Moodys 30-Year Spread'!$G$5 -> 0.04515923159 | O5: =O6+'Moodys 30-Year Spread'!$G$5 -> 0.04615923159 | P5: =P6+'Moodys 30-Year Spread'!$G$5 -> 0.04715923159 | Q5: =Q6+'Moodys 30-Year Spread'!$G$5 -> 0.04815923159 | R5: =R6+'Moodys 30-Year Spread'!$G$5 -> 0.04915923159 | S5: =S6+'Moodys 30-Year Spread'!$G$5 -> 0.04815923159 | U5: 12 | V5: 0
B6: 30-Yr Treasury | C6: =AVERAGEIF(Bloomberg!$D:$D,C$3,Bloomberg!$G:$G)/100 -> 0.0271852459 | D6: =AVERAGEIF(Bloomberg!$D:$D,D$3,Bloomberg!$G:$G)/100 -> 0.025659375 | E6: =AVERAGEIF(Bloomberg!$D:$D,E$3,Bloomberg!$G:$G)/100 -> 0.0228 | F6: =AVERAGEIF(Bloomberg!$D:$D,F$3,Bloomberg!$G:$G)/100 -> 0.0283 | G6: =AVERAGEIF(Bloomberg!$D:$D,G$3,Bloomberg!$G:$G)/100 -> 0.03046129032 | H6: =AVERAGEIF(Bloomberg!$D:$D,H$3,Bloomberg!$G:$G)/100 -> 0.02896984127 | I6: =AVERAGEIF(Bloomberg!$D:$D,I$3,Bloomberg!$G:$G)/100 -> 0.02817460317 | J6: =AVERAGEIF(Bloomberg!$D:$D,J$3,Bloomberg!$G:$G)/100 -> 0.02816774194 | K6: =AVERAGEIF(Bloomberg!$D:$D,K$3,Bloomberg!$G:$G)/100 -> 0.03030163934 | L6: =AVERAGEIF(Bloomberg!$D:$D,L$3,Bloomberg!$G:$G)/100 -> 0.030853125 | M6: =AVERAGEIF(Bloomberg!$D:$D,M$3,Bloomberg!$G:$G)/100 -> 0.03063015873 | N6: 0.033 | O6: 0.034 | P6: 0.035 | Q6: 0.036 | R6: 0.037 | S6: 0.036 | U6: 12 | V6: 1
B7: 10-Yr Treasury | C7: =AVERAGEIF(Bloomberg!$S:$S,C$3,Bloomberg!$V:$V)/100 -> 0.01914262295 | D7: =AVERAGEIF(Bloomberg!$S:$S,D$3,Bloomberg!$V:$V)/100 -> 0.0175015625 | E7: =AVERAGEIF(Bloomberg!$S:$S,E$3,Bloomberg!$V:$V)/100 -> 0.01564375 | F7: =AVERAGEIF(Bloomberg!$S:$S,F$3,Bloomberg!$V:$V)/100 -> 0.02138688525 | G7: =AVERAGEIF(Bloomberg!$S:$S,G$3,Bloomberg!$V:$V)/100 -> 0.02446612903 | H7: =AVERAGEIF(Bloomberg!$S:$S,H$3,Bloomberg!$V:$V)/100 -> 0.02260952381 | I7: =AVERAGEIF(Bloomberg!$S:$S,I$3,Bloomberg!$V:$V)/100 -> 0.02241428571 | J7: =AVERAGEIF(Bloomberg!$S:$S,J$3,Bloomberg!$V:$V)/100 -> 0.02371451613 | K7: =AVERAGEIF(Bloomberg!$S:$S,K$3,Bloomberg!$V:$V)/100 -> 0.0275852459 | L7: =AVERAGEIF(Bloomberg!$S:$S,L$3,Bloomberg!$V:$V)/100 -> 0.02920625 | M7: =AVERAGEIF(Bloomberg!$S:$S,M$3,Bloomberg!$V:$V)/100 -> 0.02923809524 | N7: 0.031 | O7: 0.032 | P7: 0.033 | Q7: 0.034 | R7: 0.034 | S7: 0.034
B8: Fed. Funds Rate | C8: =AVERAGEIF(Bloomberg!$N:$N,C$3,Bloomberg!$Q:$Q)/100 -> 0.003658064516 | D8: =AVERAGEIF(Bloomberg!$N:$N,D$3,Bloomberg!$Q:$Q)/100 -> 0.0037 | E8: =AVERAGEIF(Bloomberg!$N:$N,E$3,Bloomberg!$Q:$Q)/100 -> 0.003953125 | F8: =AVERAGEIF(Bloomberg!$N:$N,F$3,Bloomberg!$Q:$Q)/100 -> 0.004491803279 | G8: =AVERAGEIF(Bloomberg!$N:$N,G$3,Bloomberg!$Q:$Q)/100 -> 0.007038709677 | H8: =AVERAGEIF(Bloomberg!$N:$N,H$3,Bloomberg!$Q:$Q)/100 -> 0.009528125 | I8: =AVERAGEIF(Bloomberg!$N:$N,I$3,Bloomberg!$Q:$Q)/100 -> 0.01155555556 | J8: =AVERAGEIF(Bloomberg!$N:$N,J$3,Bloomberg!$Q:$Q)/100 -> 0.01201774194 | K8: =AVERAGEIF(Bloomberg!$N:$N,K$3,Bloomberg!$Q:$Q)/100 -> 0.01447903226 | L8: =AVERAGEIF(Bloomberg!$N:$N,L$3,Bloomberg!$Q:$Q)/100 -> 0.017371875 | M8: =AVERAGEIF(Bloomberg!$N:$N,M$3,Bloomberg!$Q:$Q)/100 -> 0.01923492063 | N8: 0.022 | O8: 0.024 | P8: 0.027 | Q8: 0.028 | R8: 0.029 | S8: 0.029
B32: Source: Historical data from Bloomberg Professional. Forecast data from Blue Chip Financial Forecasts, Volume. 37, No. 10, October 1, 2018 at 2.

Sheet Bloomberg
F1: H15T30Y Index | K1: MOODUA Index | P1: FEDL01 Index | U1: H15T10Y Index
D2: Quarter | F2: Date | G2: PX_LAST | I2: Quarter | K2: Date | L2: PX_LAST | N2: Quarter | P2: Date | Q2: PX_LAST | S2: Quarter | U2: Date | V2: PX_LAST
D3: =YEAR(F3)&"."&INT((MONTH(F3)-1)/3)+1 -> 2018.4 | F3: 2018-10-12 | G3: 3.32 | I3: =YEAR(K3)&"."&INT((MONTH(K3)-1)/3)+1 -> 2018.4 | K3: 2018-10-11 | L3: 4.42 | N3: =YEAR(P3)&"."&INT((MONTH(P3)-1)/3)+1 -> 2018.4 | P3: 2018-10-11 | Q3: 2.18 | S3: =YEAR(U3)&"."&INT((MONTH(U3)-1)/3)+1 -> 2018.4 | U3: 2018-10-12 | V3: 3.15
D4: =YEAR(F4)&"."&INT((MONTH(F4)-1)/3)+1 -> 2018.4 | F4: 2018-10-11 | G4: 3.32 | I4: =YEAR(K4)&"."&INT((MONTH(K4)-1)/3)+1 -> 2018.4 | K4: 2018-10-10 | L4: 4.49 | N4: =YEAR(P4)&"."&INT((MONTH(P4)-1)/3)+1 -> 2018.4 | P4: 2018-10-10 | Q4: 2.18 | S4: =YEAR(U4)&"."&INT((MONTH(U4)-1)/3)+1 -> 2018.4 | U4: 2018-10-11 | V4: 3.14
D5: =YEAR(F5)&"."&INT((MONTH(F5)-1)/3)+1 -> 2018.4 | F5: 2018-10-10 | G5: 3.39 | I5: 2018.4 | K5: 2018-10-09 | L5: 4.47 | N5: 2018.4 | P5: 2018-10-09 | Q5: 2.18 | S5: 2018.4 | U5: 2018-10-10 | V5: 3.22
D6: 2018.4 | F6: 2018-10-09 | G6: 3.37 | I6: 2018.4 | K6: 2018-10-08 | L6: 4.51 | N6: 2018.4 | P6: 2018-10-05 | Q6: 2.18 | S6: 2018.4 | U6: 2018-10-09 | V6: 3.21
D7: 2018.4 | F7: 2018-10-05 | G7: 3.4 | I7: 2018.4 | K7: 2018-10-05 | L7: 4.52 | N7: 2018.4 | P7: 2018-10-04 | Q7: 2.18 | S7: 2018.4 | U7: 2018-10-05 | V7: 3.23
D8: 2018.4 | F8: 2018-10-04 | G8: 3.35 | I8: 2018.4 | K8: 2018-10-04 | L8: 4.47 | N8: 2018.4 | P8: 2018-10-03 | Q8: 2.18 | S8: 2018.4 | U8: 2018-10-04 | V8: 3.19
D9: 2018.4 | F9: 2018-10-03 | G9: 3.3 | I9: 2018.4 | K9: 2018-10-03 | L9: 4.43 | N9: 2018.4 | P9: 2018-10-02 | Q9: 2.18 | S9: 2018.4 | U9: 2018-10-03 | V9: 3.15
D10: 2018.4 | F10: 2018-10-02 | G10: 3.2 | I10: 2018.4 | K10: 2018-10-02 | L10: 4.33 | N10: 2018.4 | P10: 2018-10-01 | Q10: 2.18 | S10: 2018.4 | U10: 2018-10-02 | V10: 3.05
D11: 2018.4 | F11: 2018-10-01 | G11: 3.24 | I11: 2018.4 | K11: 2018-10-01 | L11: 4.37 | N11: 2018.3 | P11: 2018-09-28 | Q11: 2.18 | S11: 2018.4 | U11: 2018-10-01 | V11: 3.09
D12: 2018.3 | F12: 2018-09-28 | G12: 3.19 | I12: 2018.3 | K12: 2018-09-28 | L12: 4.33 | N12: 2018.3 | P12: 2018-09-27 | Q12: 2.18 | S12: 2018.3 | U12: 2018-09-28 | V12: 3.05
D13: 2018.3 | F13: 2018-09-27 | G13: 3.19 | I13: 2018.3 | K13: 2018-09-27 | L13: 4.33 | N13: 2018.3 | P13: 2018-09-26 | Q13: 1.93 | S13: 2018.3 | U13: 2018-09-27 | V13: 3.06
D14: 2018.3 | F14: 2018-09-26 | G14: 3.19 | I14: 2018.3 | K14: 2018-09-26 | L14: 4.34 | N14: 2018.3 | P14: 2018-09-25 | Q14: 1.93 | S14: 2018.3 | U14: 2018-09-26 | V14: 3.06
D15: 2018.3 | F15: 2018-09-25 | G15: 3.23 | I15: 2018.3 | K15: 2018-09-25 | L15: 4.37 | N15: 2018.3 | P15: 2018-09-24 | Q15: 1.93 | S15: 2018.3 | U15: 2018-09-25 | V15: 3.1
D16: 2018.3 | F16: 2018-09-24 | G16: 3.21 | I16: 2018.3 | K16: 2018-09-24 | L16: 4.36 | N16: 2018.3 | P16: 2018-09-21 | Q16: 1.92 | S16: 2018.3 | U16: 2018-09-24 | V16: 3.08
D17: 2018.3 | F17: 2018-09-21 | G17: 3.2 | I17: 2018.3 | K17: 2018-09-21 | L17: 4.36 | N17: 2018.3 | P17: 2018-09-20 | Q17: 1.92 | S17: 2018.3 | U17: 2018-09-21 | V17: 3.07
D18: 2018.3 | F18: 2018-09-20 | G18: 3.21 | I18: 2018.3 | K18: 2018-09-20 | L18: 4.37 | N18: 2018.3 | P18: 2018-09-19 | Q18: 1.92 | S18: 2018.3 | U18: 2018-09-20 | V18: 3.07
D19: 2018.3 | F19: 2018-09-19 | G19: 3.23 | I19: 2018.3 | K19: 2018-09-19 | L19: 4.4 | N19: 2018.3 | P19: 2018-09-18 | Q19: 1.92 | S19: 2018.3 | U19: 2018-09-19 | V19: 3.08
D20: 2018.3 | F20: 2018-09-18 | G20: 3.2 | I20: 2018.3 | K20: 2018-09-18 | L20: 4.36 | N20: 2018.3 | P20: 2018-09-17 | Q20: 1.92 | S20: 2018.3 | U20: 2018-09-18 | V20: 3.05
D21: 2018.3 | F21: 2018-09-17 | G21: 3.13 | I21: 2018.3 | K21: 2018-09-17 | L21: 4.3 | N21: 2018.3 | P21: 2018-09-14 | Q21: 1.92 | S21: 2018.3 | U21: 2018-09-17 | V21: 2.99
D22: 2018.3 | F22: 2018-09-14 | G22: 3.13 | I22: 2018.3 | K22: 2018-09-14 | L22: 4.3 | N22: 2018.3 | P22: 2018-09-13 | Q22: 1.92 | S22: 2018.3 | U22: 2018-09-14 | V22: 2.99
D23: 2018.3 | F23: 2018-09-13 | G23: 3.11 | I23: 2018.3 | K23: 2018-09-13 | L23: 4.27 | N23: 2018.3 | P23: 2018-09-12 | Q23: 1.92 | S23: 2018.3 | U23: 2018-09-13 | V23: 2.97
D24: 2018.3 | F24: 2018-09-12 | G24: 3.11 | I24: 2018.3 | K24: 2018-09-12 | L24: 4.29 | N24: 2018.3 | P24: 2018-09-11 | Q24: 1.92 | S24: 2018.3 | U24: 2018-09-12 | V24: 2.97
D25: 2018.3 | F25: 2018-09-11 | G25: 3.13 | I25: 2018.3 | K25: 2018-09-11 | L25: 4.3 | N25: 2018.3 | P25: 2018-09-10 | Q25: 1.92 | S25: 2018.3 | U25: 2018-09-11 | V25: 2.98
D26: 2018.3 | F26: 2018-09-10 | G26: 3.09 | I26: 2018.3 | K26: 2018-09-10 | L26: 4.27 | N26: 2018.3 | P26: 2018-09-07 | Q26: 1.92 | S26: 2018.3 | U26: 2018-09-10 | V26: 2.94
D27: 2018.3 | F27: 2018-09-07 | G27: 3.11 | I27: 2018.3 | K27: 2018-09-07 | L27: 4.29 | N27: 2018.3 | P27: 2018-09-06 | Q27: 1.92 | S27: 2018.3 | U27: 2018-09-07 | V27: 2.94
D28: 2018.3 | F28: 2018-09-06 | G28: 3.06 | I28: 2018.3 | K28: 2018-09-06 | L28: 4.28 | N28: 2018.3 | P28: 2018-09-05 | Q28: 1.92 | S28: 2018.3 | U28: 2018-09-06 | V28: 2.88
D29: 2018.3 | F29: 2018-09-05 | G29: 3.08 | I29: 2018.3 | K29: 2018-09-05 | L29: 4.31 | N29: 2018.3 | P29: 2018-09-04 | Q29: 1.92 | S29: 2018.3 | U29: 2018-09-05 | V29: 2.9
D30: 2018.3 | F30: 2018-09-04 | G30: 3.07 | I30: 2018.3 | K30: 2018-09-04 | L30: 4.3 | N30: 2018.3 | P30: 2018-08-31 | Q30: 1.91 | S30: 2018.3 | U30: 2018-09-04 | V30: 2.9
D31: 2018.3 | F31: 2018-08-31 | G31: 3.02 | I31: 2018.3 | K31: 2018-08-31 | L31: 4.24 | N31: 2018.3 | P31: 2018-08-30 | Q31: 1.92 | S31: 2018.3 | U31: 2018-08-31 | V31: 2.86
D32: 2018.3 | F32: 2018-08-30 | G32: 3 | I32: 2018.3 | K32: 2018-08-30 | L32: 4.24 | N32: 2018.3 | P32: 2018-08-29 | Q32: 1.92 | S32: 2018.3 | U32: 2018-08-30 | V32: 2.86
D33: 2018.3 | F33: 2018-08-29 | G33: 3.02 | I33: 2018.3 | K33: 2018-08-29 | L33: 4.25 | N33: 2018.3 | P33: 2018-08-28 | Q33: 1.92 | S33: 2018.3 | U33: 2018-08-29 | V33: 2.89
D34: 2018.3 | F34: 2018-08-28 | G34: 3.03 | I34: 2018.3 | K34: 2018-08-28 | L34: 4.26 | N34: 2018.3 | P34: 2018-08-27 | Q34: 1.92 | S34: 2018.3 | U34: 2018-08-28 | V34: 2.88
D35: 2018.3 | F35: 2018-08-27 | G35: 3 | I35: 2018.3 | K35: 2018-08-27 | L35: 4.23 | N35: 2018.3 | P35: 2018-08-24 | Q35: 1.92 | S35: 2018.3 | U35: 2018-08-27 | V35: 2.85
D36: 2018.3 | F36: 2018-08-24 | G36: 2.97 | I36: 2018.3 | K36: 2018-08-24 | L36: 4.21 | N36: 2018.3 | P36: 2018-08-23 | Q36: 1.92 | S36: 2018.3 | U36: 2018-08-24 | V36: 2.82
D37: 2018.3 | F37: 2018-08-23 | G37: 2.97 | I37: 2018.3 | K37: 2018-08-23 | L37: 4.21 | N37: 2018.3 | P37: 2018-08-22 | Q37: 1.92 | S37: 2018.3 | U37: 2018-08-23 | V37: 2.82
D38: 2018.3 | F38: 2018-08-22 | G38: 2.99 | I38: 2018.3 | K38: 2018-08-22 | L38: 4.22 | N38: 2018.3 | P38: 2018-08-21 | Q38: 1.92 | S38: 2018.3 | U38: 2018-08-22 | V38: 2.82
D39: 2018.3 | F39: 2018-08-21 | G39: 3 | I39: 2018.3 | K39: 2018-08-21 | L39: 4.23 | N39: 2018.3 | P39: 2018-08-20 | Q39: 1.92 | S39: 2018.3 | U39: 2018-08-21 | V39: 2.85
D40: 2018.3 | F40: 2018-08-20 | G40: 2.99 | I40: 2018.3 | K40: 2018-08-20 | L40: 4.21 | N40: 2018.3 | P40: 2018-08-17 | Q40: 1.92 | S40: 2018.3 | U40: 2018-08-20 | V40: 2.82
D41: 2018.3 | F41: 2018-08-17 | G41: 3.03 | I41: 2018.3 | K41: 2018-08-17 | L41: 4.25 | N41: 2018.3 | P41: 2018-08-16 | Q41: 1.92 | S41: 2018.3 | U41: 2018-08-17 | V41: 2.87
D42: 2018.3 | F42: 2018-08-16 | G42: 3.03 | I42: 2018.3 | K42: 2018-08-16 | L42: 4.26 | N42: 2018.3 | P42: 2018-08-15 | Q42: 1.91 | S42: 2018.3 | U42: 2018-08-16 | V42: 2.87
D43: 2018.3 | F43: 2018-08-15 | G43: 3.03 | I43: 2018.3 | K43: 2018-08-15 | L43: 4.25 | N43: 2018.3 | P43: 2018-08-14 | Q43: 1.91 | S43: 2018.3 | U43: 2018-08-15 | V43: 2.86
D44: 2018.3 | F44: 2018-08-14 | G44: 3.06 | I44: 2018.3 | K44: 2018-08-14 | L44: 4.27 | N44: 2018.3 | P44: 2018-08-13 | Q44: 1.91 | S44: 2018.3 | U44: 2018-08-14 | V44: 2.89
D45: 2018.3 | F45: 2018-08-13 | G45: 3.05 | I45: 2018.3 | K45: 2018-08-13 | L45: 4.25 | N45: 2018.3 | P45: 2018-08-10 | Q45: 1.91 | S45: 2018.3 | U45: 2018-08-13 | V45: 2.88
D46: 2018.3 | F46: 2018-08-10 | G46: 3.03 | I46: 2018.3 | K46: 2018-08-10 | L46: 4.22 | N46: 2018.3 | P46: 2018-08-09 | Q46: 1.91 | S46: 2018.3 | U46: 2018-08-10 | V46: 2.87
D47: 2018.3 | F47: 2018-08-09 | G47: 3.08 | I47: 2018.3 | K47: 2018-08-09 | L47: 4.28 | N47: 2018.3 | P47: 2018-08-08 | Q47: 1.91 | S47: 2018.3 | U47: 2018-08-09 | V47: 2.93
D48: 2018.3 | F48: 2018-08-08 | G48: 3.12 | I48: 2018.3 | K48: 2018-08-08 | L48: 4.31 | N48: 2018.3 | P48: 2018-08-07 | Q48: 1.91 | S48: 2018.3 | U48: 2018-08-08 | V48: 2.96
D49: 2018.3 | F49: 2018-08-07 | G49: 3.12 | I49: 2018.3 | K49: 2018-08-07 | L49: 4.31 | N49: 2018.3 | P49: 2018-08-06 | Q49: 1.91 | S49: 2018.3 | U49: 2018-08-07 | V49: 2.98
D50: 2018.3 | F50: 2018-08-06 | G50: 3.08 | I50: 2018.3 | K50: 2018-08-06 | L50: 4.29 | N50: 2018.3 | P50: 2018-08-03 | Q50: 1.91 | S50: 2018.3 | U50: 2018-08-06 | V50: 2.94
D51: 2018.3 | F51: 2018-08-03 | G51: 3.09 | I51: 2018.3 | K51: 2018-08-03 | L51: 4.3 | N51: 2018.3 | P51: 2018-08-02 | Q51: 1.91 | S51: 2018.3 | U51: 2018-08-03 | V51: 2.95
D52: 2018.3 | F52: 2018-08-02 | G52: 3.12 | I52: 2018.3 | K52: 2018-08-02 | L52: 4.33 | N52: 2018.3 | P52: 2018-08-01 | Q52: 1.91 | S52: 2018.3 | U52: 2018-08-02 | V52: 2.98
D53: 2018.3 | F53: 2018-08-01 | G53: 3.13 | I53: 2018.3 | K53: 2018-08-01 | L53: 4.35 | N53: 2018.3 | P53: 2018-07-31 | Q53: 1.91 | S53: 2018.3 | U53: 2018-08-01 | V53: 3
D54: 2018.3 | F54: 2018-07-31 | G54: 3.08 | I54: 2018.3 | K54: 2018-07-31 | L54: 4.31 | N54: 2018.3 | P54: 2018-07-30 | Q54: 1.91 | S54: 2018.3 | U54: 2018-07-31 | V54: 2.96
D55: 2018.3 | F55: 2018-07-30 | G55: 3.11 | I55: 2018.3 | K55: 2018-07-30 | L55: 4.33 | N55: 2018.3 | P55: 2018-07-27 | Q55: 1.91 | S55: 2018.3 | U55: 2018-07-30 | V55: 2.98
D56: 2018.3 | F56: 2018-07-27 | G56: 3.09 | I56: 2018.3 | K56: 2018-07-27 | L56: 4.32 | N56: 2018.3 | P56: 2018-07-26 | Q56: 1.91 | S56: 2018.3 | U56: 2018-07-27 | V56: 2.96
D57: 2018.3 | F57: 2018-07-26 | G57: 3.1 | I57: 2018.3 | K57: 2018-07-26 | L57: 4.33 | N57: 2018.3 | P57: 2018-07-25 | Q57: 1.91 | S57: 2018.3 | U57: 2018-07-26 | V57: 2.98
D58: 2018.3 | F58: 2018-07-25 | G58: 3.06 | I58: 2018.3 | K58: 2018-07-25 | L58: 4.3 | N58: 2018.3 | P58: 2018-07-24 | Q58: 1.91 | S58: 2018.3 | U58: 2018-07-25 | V58: 2.94
D59: 2018.3 | F59: 2018-07-24 | G59: 3.08 | I59: 2018.3 | K59: 2018-07-24 | L59: 4.32 | N59: 2018.3 | P59: 2018-07-23 | Q59: 1.91 | S59: 2018.3 | U59: 2018-07-24 | V59: 2.95
D60: 2018.3 | F60: 2018-07-23 | G60: 3.1 | I60: 2018.3 | K60: 2018-07-23 | L60: 4.35 | N60: 2018.3 | P60: 2018-07-20 | Q60: 1.91 | S60: 2018.3 | U60: 2018-07-23 | V60: 2.96
D61: 2018.3 | F61: 2018-07-20 | G61: 3.03 | I61: 2018.3 | K61: 2018-07-20 | L61: 4.29 | N61: 2018.3 | P61: 2018-07-19 | Q61: 1.91 | S61: 2018.3 | U61: 2018-07-20 | V61: 2.89
D62: 2018.3 | F62: 2018-07-19 | G62: 2.96 | I62: 2018.3 | K62: 2018-07-19 | L62: 4.23 | N62: 2018.3 | P62: 2018-07-18 | Q62: 1.91 | S62: 2018.3 | U62: 2018-07-19 | V62: 2.84
D63: 2018.3 | F63: 2018-07-18 | G63: 2.99 | I63: 2018.3 | K63: 2018-07-18 | L63: 4.25 | N63: 2018.3 | P63: 2018-07-17 | Q63: 1.91 | S63: 2018.3 | U63: 2018-07-18 | V63: 2.88
D64: 2018.3 | F64: 2018-07-17 | G64: 2.97 | I64: 2018.3 | K64: 2018-07-17 | L64: 4.24 | N64: 2018.3 | P64: 2018-07-16 | Q64: 1.91 | S64: 2018.3 | U64: 2018-07-17 | V64: 2.86
D65: 2018.3 | F65: 2018-07-16 | G65: 2.96 | I65: 2018.3 | K65: 2018-07-16 | L65: 4.25 | N65: 2018.3 | P65: 2018-07-13 | Q65: 1.91 | S65: 2018.3 | U65: 2018-07-16 | V65: 2.85
D66: 2018.3 | F66: 2018-07-13 | G66: 2.94 | I66: 2018.3 | K66: 2018-07-13 | L66: 4.21 | N66: 2018.3 | P66: 2018-07-12 | Q66: 1.91 | S66: 2018.3 | U66: 2018-07-13 | V66: 2.83
D67: 2018.3 | F67: 2018-07-12 | G67: 2.95 | I67: 2018.3 | K67: 2018-07-12 | L67: 4.23 | N67: 2018.3 | P67: 2018-07-11 | Q67: 1.91 | S67: 2018.3 | U67: 2018-07-12 | V67: 2.85
D68: =YEAR(F68)&"."&INT((MONTH(F68)-1)/3)+1 -> 2018.3 | F68: 2018-07-11 | G68: 2.95 | I68: =YEAR(K68)&"."&INT((MONTH(K68)-1)/3)+1 -> 2018.3 | K68: 2018-07-11 | L68: 4.23 | N68: =YEAR(P68)&"."&INT((MONTH(P68)-1)/3)+1 -> 2018.3 | P68: 2018-07-10 | Q68: 1.91 | S68: =YEAR(U68)&"."&INT((MONTH(U68)-1)/3)+1 -> 2018.3 | U68: 2018-07-11 | V68: 2.85
D69: 2018.3 | F69: 2018-07-10 | G69: 2.97 | I69: 2018.3 | K69: 2018-07-10 | L69: 4.26 | N69: 2018.3 | P69: 2018-07-09 | Q69: 1.91 | S69: 2018.3 | U69: 2018-07-10 | V69: 2.87
D70: 2018.3 | F70: 2018-07-09 | G70: 2.96 | I70: 2018.3 | K70: 2018-07-09 | L70: 4.26 | N70: 2018.3 | P70: 2018-07-06 | Q70: 1.91 | S70: 2018.3 | U70: 2018-07-09 | V70: 2.86
D71: 2018.3 | F71: 2018-07-06 | G71: 2.94 | I71: 2018.3 | K71: 2018-07-06 | L71: 4.23 | N71: 2018.3 | P71: 2018-07-05 | Q71: 1.91 | S71: 2018.3 | U71: 2018-07-06 | V71: 2.82
D72: 2018.3 | F72: 2018-07-05 | G72: 2.95 | I72: 2018.3 | K72: 2018-07-05 | L72: 4.25 | N72: 2018.3 | P72: 2018-07-03 | Q72: 1.91 | S72: 2018.3 | U72: 2018-07-05 | V72: 2.84
D73: 2018.3 | F73: 2018-07-03 | G73: 2.96 | I73: 2018.3 | K73: 2018-07-03 | L73: 4.26 | N73: 2018.3 | P73: 2018-07-02 | Q73: 1.91 | S73: 2018.3 | U73: 2018-07-03 | V73: 2.83
D74: 2018.3 | F74: 2018-07-02 | G74: 2.99 | I74: 2018.3 | K74: 2018-07-02 | L74: 4.28 | N74: 2018.2 | P74: 2018-06-29 | Q74: 1.91 | S74: 2018.3 | U74: 2018-07-02 | V74: 2.87
D75: 2018.2 | F75: 2018-06-29 | G75: 2.98 | I75: 2018.2 | K75: 2018-06-29 | L75: 4.27 | N75: 2018.2 | P75: 2018-06-28 | Q75: 1.91 | S75: 2018.2 | U75: 2018-06-29 | V75: 2.85
D76: 2018.2 | F76: 2018-06-28 | G76: 2.97 | I76: 2018.2 | K76: 2018-06-28 | L76: 4.27 | N76: 2018.2 | P76: 2018-06-27 | Q76: 1.91 | S76: 2018.2 | U76: 2018-06-28 | V76: 2.84
D77: 2018.2 | F77: 2018-06-27 | G77: 2.97 | I77: 2018.2 | K77: 2018-06-27 | L77: 4.25 | N77: 2018.2 | P77: 2018-06-26 | Q77: 1.92 | S77: 2018.2 | U77: 2018-06-27 | V77: 2.83
D78: 2018.2 | F78: 2018-06-26 | G78: 3.03 | I78: 2018.2 | K78: 2018-06-26 | L78: 4.29 | N78: 2018.2 | P78: 2018-06-25 | Q78: 1.92 | S78: 2018.2 | U78: 2018-06-26 | V78: 2.88
D79: 2018.2 | F79: 2018-06-25 | G79: 3.02 | I79: 2018.2 | K79: 2018-06-25 | L79: 4.27 | N79: 2018.2 | P79: 2018-06-22 | Q79: 1.92 | S79: 2018.2 | U79: 2018-06-25 | V79: 2.87
D80: 2018.2 | F80: 2018-06-22 | G80: 3.04 | I80: 2018.2 | K80: 2018-06-22 | L80: 4.28 | N80: 2018.2 | P80: 2018-06-21 | Q80: 1.92 | S80: 2018.2 | U80: 2018-06-22 | V80: 2.9
D81: 2018.2 | F81: 2018-06-21 | G81: 3.04 | I81: 2018.2 | K81: 2018-06-21 | L81: 4.28 | N81: 2018.2 | P81: 2018-06-20 | Q81: 1.92 | S81: 2018.2 | U81: 2018-06-21 | V81: 2.9
D82: 2018.2 | F82: 2018-06-20 | G82: 3.06 | I82: 2018.2 | K82: 2018-06-20 | L82: 4.29 | N82: 2018.2 | P82: 2018-06-19 | Q82: 1.91 | S82: 2018.2 | U82: 2018-06-20 | V82: 2.93
D83: 2018.2 | F83: 2018-06-19 | G83: 3.02 | I83: 2018.2 | K83: 2018-06-19 | L83: 4.25 | N83: 2018.2 | P83: 2018-06-18 | Q83: 1.9 | S83: 2018.2 | U83: 2018-06-19 | V83: 2.89
D84: 2018.2 | F84: 2018-06-18 | G84: 3.05 | I84: 2018.2 | K84: 2018-06-18 | L84: 4.27 | N84: 2018.2 | P84: 2018-06-15 | Q84: 1.9 | S84: 2018.2 | U84: 2018-06-18 | V84: 2.92
D85: 2018.2 | F85: 2018-06-15 | G85: 3.05 | I85: 2018.2 | K85: 2018-06-15 | L85: 4.25 | N85: 2018.2 | P85: 2018-06-14 | Q85: 1.9 | S85: 2018.2 | U85: 2018-06-15 | V85: 2.93
D86: 2018.2 | F86: 2018-06-14 | G86: 3.05 | I86: 2018.2 | K86: 2018-06-14 | L86: 4.27 | N86: 2018.2 | P86: 2018-06-13 | Q86: 1.7 | S86: 2018.2 | U86: 2018-06-14 | V86: 2.94
D87: 2018.2 | F87: 2018-06-13 | G87: 3.1 | I87: 2018.2 | K87: 2018-06-13 | L87: 4.3 | N87: 2018.2 | P87: 2018-06-12 | Q87: 1.7 | S87: 2018.2 | U87: 2018-06-13 | V87: 2.98
D88: 2018.2 | F88: 2018-06-12 | G88: 3.09 | I88: 2018.2 | K88: 2018-06-12 | L88: 4.29 | N88: 2018.2 | P88: 2018-06-11 | Q88: 1.7 | S88: 2018.2 | U88: 2018-06-12 | V88: 2.96
D89: 2018.2 | F89: 2018-06-11 | G89: 3.1 | I89: 2018.2 | K89: 2018-06-11 | L89: 4.29 | N89: 2018.2 | P89: 2018-06-08 | Q89: 1.7 | S89: 2018.2 | U89: 2018-06-11 | V89: 2.96
D90: 2018.2 | F90: 2018-06-08 | G90: 3.08 | I90: 2018.2 | K90: 2018-06-08 | L90: 4.27 | N90: 2018.2 | P90: 2018-06-07 | Q90: 1.7 | S90: 2018.2 | U90: 2018-06-08 | V90: 2.93
D91: 2018.2 | F91: 2018-06-07 | G91: 3.08 | I91: 2018.2 | K91: 2018-06-07 | L91: 4.27 | N91: 2018.2 | P91: 2018-06-06 | Q91: 1.7 | S91: 2018.2 | U91: 2018-06-07 | V91: 2.93
D92: 2018.2 | F92: 2018-06-06 | G92: 3.13 | I92: 2018.2 | K92: 2018-06-06 | L92: 4.32 | N92: 2018.2 | P92: 2018-06-05 | Q92: 1.7 | S92: 2018.2 | U92: 2018-06-06 | V92: 2.97
D93: 2018.2 | F93: 2018-06-05 | G93: 3.07 | I93: 2018.2 | K93: 2018-06-05 | L93: 4.27 | N93: 2018.2 | P93: 2018-06-04 | Q93: 1.7 | S93: 2018.2 | U93: 2018-06-05 | V93: 2.92
D94: 2018.2 | F94: 2018-06-04 | G94: 3.08 | I94: 2018.2 | K94: 2018-06-04 | L94: 4.27 | N94: 2018.2 | P94: 2018-06-01 | Q94: 1.7 | S94: 2018.2 | U94: 2018-06-04 | V94: 2.94
D95: 2018.2 | F95: 2018-06-01 | G95: 3.04 | I95: 2018.2 | K95: 2018-06-01 | L95: 4.24 | N95: 2018.2 | P95: 2018-05-31 | Q95: 1.7 | S95: 2018.2 | U95: 2018-06-01 | V95: 2.89
D96: 2018.2 | F96: 2018-05-31 | G96: 3 | I96: 2018.2 | K96: 2018-05-31 | L96: 4.17 | N96: 2018.2 | P96: 2018-05-30 | Q96: 1.7 | S96: 2018.2 | U96: 2018-05-31 | V96: 2.83
D97: 2018.2 | F97: 2018-05-30 | G97: 3.01 | I97: 2018.2 | K97: 2018-05-30 | L97: 4.2 | N97: 2018.2 | P97: 2018-05-29 | Q97: 1.7 | S97: 2018.2 | U97: 2018-05-30 | V97: 2.84
D98: 2018.2 | F98: 2018-05-29 | G98: 2.96 | I98: 2018.2 | K98: 2018-05-29 | L98: 4.17 | N98: 2018.2 | P98: 2018-05-25 | Q98: 1.7 | S98: 2018.2 | U98: 2018-05-29 | V98: 2.77
D99: 2018.2 | F99: 2018-05-25 | G99: 3.09 | I99: 2018.2 | K99: 2018-05-25 | L99: 4.24 | N99: 2018.2 | P99: 2018-05-24 | Q99: 1.7 | S99: 2018.2 | U99: 2018-05-25 | V99: 2.93
D100: 2018.2 | F100: 2018-05-24 | G100: 3.13 | I100: 2018.2 | K100: 2018-05-24 | L100: 4.28 | N100: 2018.2 | P100: 2018-05-23 | Q100: 1.7 | S100: 2018.2 | U100: 2018-05-24 | V100: 2.98
D101: 2018.2 | F101: 2018-05-23 | G101: 3.17 | I101: 2018.2 | K101: 2018-05-23 | L101: 4.32 | N101: 2018.2 | P101: 2018-05-22 | Q101: 1.7 | S101: 2018.2 | U101: 2018-05-23 | V101: 3.01
D102: 2018.2 | F102: 2018-05-22 | G102: 3.21 | I102: 2018.2 | K102: 2018-05-22 | L102: 4.36 | N102: 2018.2 | P102: 2018-05-21 | Q102: 1.7 | S102: 2018.2 | U102: 2018-05-22 | V102: 3.06
D103: 2018.2 | F103: 2018-05-21 | G103: 3.2 | I103: 2018.2 | K103: 2018-05-21 | L103: 4.35 | N103: 2018.2 | P103: 2018-05-18 | Q103: 1.7 | S103: 2018.2 | U103: 2018-05-21 | V103: 3.06
D104: 2018.2 | F104: 2018-05-18 | G104: 3.2 | I104: 2018.2 | K104: 2018-05-18 | L104: 4.36 | N104: 2018.2 | P104: 2018-05-17 | Q104: 1.7 | S104: 2018.2 | U104: 2018-05-18 | V104: 3.06
D105: 2018.2 | F105: 2018-05-17 | G105: 3.25 | I105: 2018.2 | K105: 2018-05-17 | L105: 4.39 | N105: 2018.2 | P105: 2018-05-16 | Q105: 1.7 | S105: 2018.2 | U105: 2018-05-17 | V105: 3.11
D106: 2018.2 | F106: 2018-05-16 | G106: 3.21 | I106: 2018.2 | K106: 2018-05-16 | L106: 4.37 | N106: 2018.2 | P106: 2018-05-15 | Q106: 1.7 | S106: 2018.2 | U106: 2018-05-16 | V106: 3.09
D107: 2018.2 | F107: 2018-05-15 | G107: 3.2 | I107: 2018.2 | K107: 2018-05-15 | L107: 4.36 | N107: 2018.2 | P107: 2018-05-14 | Q107: 1.7 | S107: 2018.2 | U107: 2018-05-15 | V107: 3.08
D108: 2018.2 | F108: 2018-05-14 | G108: 3.13 | I108: 2018.2 | K108: 2018-05-14 | L108: 4.28 | N108: 2018.2 | P108: 2018-05-11 | Q108: 1.7 | S108: 2018.2 | U108: 2018-05-14 | V108: 3
D109: 2018.2 | F109: 2018-05-11 | G109: 3.1 | I109: 2018.2 | K109: 2018-05-11 | L109: 4.26 | N109: 2018.2 | P109: 2018-05-10 | Q109: 1.7 | S109: 2018.2 | U109: 2018-05-11 | V109: 2.97
D110: 2018.2 | F110: 2018-05-10 | G110: 3.12 | I110: 2018.2 | K110: 2018-05-10 | L110: 4.27 | N110: 2018.2 | P110: 2018-05-09 | Q110: 1.7 | S110: 2018.2 | U110: 2018-05-10 | V110: 2.97
D111: 2018.2 | F111: 2018-05-09 | G111: 3.16 | I111: 2018.2 | K111: 2018-05-09 | L111: 4.29 | N111: 2018.2 | P111: 2018-05-08 | Q111: 1.7 | S111: 2018.2 | U111: 2018-05-09 | V111: 3
D112: 2018.2 | F112: 2018-05-08 | G112: 3.13 | I112: 2018.2 | K112: 2018-05-08 | L112: 4.26 | N112: 2018.2 | P112: 2018-05-07 | Q112: 1.7 | S112: 2018.2 | U112: 2018-05-08 | V112: 2.97
D113: 2018.2 | F113: 2018-05-07 | G113: 3.12 | I113: 2018.2 | K113: 2018-05-07 | L113: 4.25 | N113: 2018.2 | P113: 2018-05-04 | Q113: 1.7 | S113: 2018.2 | U113: 2018-05-07 | V113: 2.95
D114: 2018.2 | F114: 2018-05-04 | G114: 3.12 | I114: 2018.2 | K114: 2018-05-04 | L114: 4.24 | N114: 2018.2 | P114: 2018-05-03 | Q114: 1.7 | S114: 2018.2 | U114: 2018-05-04 | V114: 2.95
D115: 2018.2 | F115: 2018-05-03 | G115: 3.12 | I115: 2018.2 | K115: 2018-05-03 | L115: 4.23 | N115: 2018.2 | P115: 2018-05-02 | Q115: 1.7 | S115: 2018.2 | U115: 2018-05-03 | V115: 2.94
D116: 2018.2 | F116: 2018-05-02 | G116: 3.14 | I116: 2018.2 | K116: 2018-05-02 | L116: 4.24 | N116: 2018.2 | P116: 2018-05-01 | Q116: 1.7 | S116: 2018.2 | U116: 2018-05-02 | V116: 2.97
D117: 2018.2 | F117: 2018-05-01 | G117: 3.13 | I117: 2018.2 | K117: 2018-05-01 | L117: 4.24 | N117: 2018.2 | P117: 2018-04-30 | Q117: 1.69 | S117: 2018.2 | U117: 2018-05-01 | V117: 2.97
D118: 2018.2 | F118: 2018-04-30 | G118: 3.11 | I118: 2018.2 | K118: 2018-04-30 | L118: 4.19 | N118: 2018.2 | P118: 2018-04-27 | Q118: 1.7 | S118: 2018.2 | U118: 2018-04-30 | V118: 2.95
D119: 2018.2 | F119: 2018-04-27 | G119: 3.13 | I119: 2018.2 | K119: 2018-04-27 | L119: 4.22 | N119: 2018.2 | P119: 2018-04-26 | Q119: 1.7 | S119: 2018.2 | U119: 2018-04-27 | V119: 2.96
D120: 2018.2 | F120: 2018-04-26 | G120: 3.18 | I120: 2018.2 | K120: 2018-04-26 | L120: 4.27 | N120: 2018.2 | P120: 2018-04-25 | Q120: 1.7 | S120: 2018.2 | U120: 2018-04-26 | V120: 3
D121: 2018.2 | F121: 2018-04-25 | G121: 3.21 | I121: 2018.2 | K121: 2018-04-25 | L121: 4.3 | N121: 2018.2 | P121: 2018-04-24 | Q121: 1.7 | S121: 2018.2 | U121: 2018-04-25 | V121: 3.03
D122: 2018.2 | F122: 2018-04-24 | G122: 3.18 | I122: 2018.2 | K122: 2018-04-24 | L122: 4.26 | N122: 2018.2 | P122: 2018-04-23 | Q122: 1.7 | S122: 2018.2 | U122: 2018-04-24 | V122: 3
D123: 2018.2 | F123: 2018-04-23 | G123: 3.15 | I123: 2018.2 | K123: 2018-04-23 | L123: 4.24 | N123: 2018.2 | P123: 2018-04-20 | Q123: 1.7 | S123: 2018.2 | U123: 2018-04-23 | V123: 2.98
D124: 2018.2 | F124: 2018-04-20 | G124: 3.14 | I124: 2018.2 | K124: 2018-04-20 | L124: 4.23 | N124: 2018.2 | P124: 2018-04-19 | Q124: 1.69 | S124: 2018.2 | U124: 2018-04-20 | V124: 2.96
D125: 2018.2 | F125: 2018-04-19 | G125: 3.11 | I125: 2018.2 | K125: 2018-04-19 | L125: 4.2 | N125: 2018.2 | P125: 2018-04-18 | Q125: 1.69 | S125: 2018.2 | U125: 2018-04-19 | V125: 2.92
D126: 2018.2 | F126: 2018-04-18 | G126: 3.06 | I126: 2018.2 | K126: 2018-04-18 | L126: 4.14 | N126: 2018.2 | P126: 2018-04-17 | Q126: 1.69 | S126: 2018.2 | U126: 2018-04-18 | V126: 2.87
D127: 2018.2 | F127: 2018-04-17 | G127: 3 | I127: 2018.2 | K127: 2018-04-17 | L127: 4.1 | N127: 2018.2 | P127: 2018-04-16 | Q127: 1.69 | S127: 2018.2 | U127: 2018-04-17 | V127: 2.82
D128: 2018.2 | F128: 2018-04-16 | G128: 3.03 | I128: 2018.2 | K128: 2018-04-16 | L128: 4.13 | N128: 2018.2 | P128: 2018-04-13 | Q128: 1.69 | S128: 2018.2 | U128: 2018-04-16 | V128: 2.83
D129: 2018.2 | F129: 2018-04-13 | G129: 3.03 | I129: 2018.2 | K129: 2018-04-13 | L129: 4.13 | N129: 2018.2 | P129: 2018-04-12 | Q129: 1.69 | S129: 2018.2 | U129: 2018-04-13 | V129: 2.82
D130: 2018.2 | F130: 2018-04-12 | G130: 3.05 | I130: 2018.2 | K130: 2018-04-12 | L130: 4.14 | N130: 2018.2 | P130: 2018-04-11 | Q130: 1.69 | S130: 2018.2 | U130: 2018-04-12 | V130: 2.83
D131: 2018.2 | F131: 2018-04-11 | G131: 2.99 | I131: 2018.2 | K131: 2018-04-11 | L131: 4.1 | N131: 2018.2 | P131: 2018-04-10 | Q131: 1.69 | S131: 2018.2 | U131: 2018-04-11 | V131: 2.79
D132: =YEAR(F132)&"."&INT((MONTH(F132)-1)/3)+1 -> 2018.2 | F132: 2018-04-10 | G132: 3.02 | I132: =YEAR(K132)&"."&INT((MONTH(K132)-1)/3)+1 -> 2018.2 | K132: 2018-04-10 | L132: 4.12 | N132: =YEAR(P132)&"."&INT((MONTH(P132)-1)/3)+1 -> 2018.2 | P132: 2018-04-09 | Q132: 1.69 | S132: =YEAR(U132)&"."&INT((MONTH(U132)-1)/3)+1 -> 2018.2 | U132: 2018-04-10 | V132: 2.8
D133: 2018.2 | F133: 2018-04-09 | G133: 3.02 | I133: 2018.2 | K133: 2018-04-09 | L133: 4.12 | N133: 2018.2 | P133: 2018-04-06 | Q133: 1.69 | S133: 2018.2 | U133: 2018-04-09 | V133: 2.78
D134: 2018.2 | F134: 2018-04-06 | G134: 3.01 | I134: 2018.2 | K134: 2018-04-06 | L134: 4.12 | N134: 2018.2 | P134: 2018-04-05 | Q134: 1.69 | S134: 2018.2 | U134: 2018-04-06 | V134: 2.77
D135: 2018.2 | F135: 2018-04-05 | G135: 3.07 | I135: 2018.2 | K135: 2018-04-05 | L135: 4.17 | N135: 2018.2 | P135: 2018-04-04 | Q135: 1.69 | S135: 2018.2 | U135: 2018-04-05 | V135: 2.83
D136: 2018.2 | F136: 2018-04-04 | G136: 3.03 | I136: 2018.2 | K136: 2018-04-04 | L136: 4.13 | N136: 2018.2 | P136: 2018-04-03 | Q136: 1.69 | S136: 2018.2 | U136: 2018-04-04 | V136: 2.79
D137: 2018.2 | F137: 2018-04-03 | G137: 3.02 | I137: 2018.2 | K137: 2018-04-03 | L137: 4.12 | N137: 2018.2 | P137: 2018-04-02 | Q137: 1.68 | S137: 2018.2 | U137: 2018-04-03 | V137: 2.79
D138: 2018.2 | F138: 2018-04-02 | G138: 2.97 | I138: 2018.2 | K138: 2018-04-02 | L138: 4.07 | N138: 2018.1 | P138: 2018-03-30 | Q138: 1.67 | S138: 2018.2 | U138: 2018-04-02 | V138: 2.73
D139: 2018.1 | F139: 2018-03-29 | G139: 2.97 | I139: 2018.1 | K139: 2018-03-29 | L139: 4.07 | N139: 2018.1 | P139: 2018-03-29 | Q139: 1.68 | S139: 2018.1 | U139: 2018-03-29 | V139: 2.74
D140: 2018.1 | F140: 2018-03-28 | G140: 3.01 | I140: 2018.1 | K140: 2018-03-28 | L140: 4.11 | N140: 2018.1 | P140: 2018-03-28 | Q140: 1.68 | S140: 2018.1 | U140: 2018-03-28 | V140: 2.77
D141: 2018.1 | F141: 2018-03-27 | G141: 3.03 | I141: 2018.1 | K141: 2018-03-27 | L141: 4.12 | N141: 2018.1 | P141: 2018-03-27 | Q141: 1.68 | S141: 2018.1 | U141: 2018-03-27 | V141: 2.78
D142: 2018.1 | F142: 2018-03-26 | G142: 3.08 | I142: 2018.1 | K142: 2018-03-26 | L142: 4.15 | N142: 2018.1 | P142: 2018-03-26 | Q142: 1.68 | S142: 2018.1 | U142: 2018-03-26 | V142: 2.85
D143: 2018.1 | F143: 2018-03-23 | G143: 3.06 | I143: 2018.1 | K143: 2018-03-23 | L143: 4.15 | N143: 2018.1 | P143: 2018-03-23 | Q143: 1.68 | S143: 2018.1 | U143: 2018-03-23 | V143: 2.82
D144: 2018.1 | F144: 2018-03-22 | G144: 3.06 | I144: 2018.1 | K144: 2018-03-22 | L144: 4.13 | N144: 2018.1 | P144: 2018-03-22 | Q144: 1.68 | S144: 2018.1 | U144: 2018-03-22 | V144: 2.83
D145: 2018.1 | F145: 2018-03-21 | G145: 3.12 | I145: 2018.1 | K145: 2018-03-21 | L145: 4.18 | N145: 2018.1 | P145: 2018-03-21 | Q145: 1.44 | S145: 2018.1 | U145: 2018-03-21 | V145: 2.89
D146: 2018.1 | F146: 2018-03-20 | G146: 3.12 | I146: 2018.1 | K146: 2018-03-20 | L146: 4.16 | N146: 2018.1 | P146: 2018-03-20 | Q146: 1.44 | S146: 2018.1 | U146: 2018-03-20 | V146: 2.89
D147: 2018.1 | F147: 2018-03-19 | G147: 3.09 | I147: 2018.1 | K147: 2018-03-19 | L147: 4.12 | N147: 2018.1 | P147: 2018-03-19 | Q147: 1.43 | S147: 2018.1 | U147: 2018-03-19 | V147: 2.85
D148: 2018.1 | F148: 2018-03-16 | G148: 3.08 | I148: 2018.1 | K148: 2018-03-16 | L148: 4.12 | N148: 2018.1 | P148: 2018-03-16 | Q148: 1.43 | S148: 2018.1 | U148: 2018-03-16 | V148: 2.85
D149: 2018.1 | F149: 2018-03-15 | G149: 3.05 | I149: 2018.1 | K149: 2018-03-15 | L149: 4.1 | N149: 2018.1 | P149: 2018-03-15 | Q149: 1.43 | S149: 2018.1 | U149: 2018-03-15 | V149: 2.82
D150: 2018.1 | F150: 2018-03-14 | G150: 3.05 | I150: 2018.1 | K150: 2018-03-14 | L150: 4.1 | N150: 2018.1 | P150: 2018-03-14 | Q150: 1.42 | S150: 2018.1 | U150: 2018-03-14 | V150: 2.81
D151: 2018.1 | F151: 2018-03-13 | G151: 3.1 | I151: 2018.1 | K151: 2018-03-13 | L151: 4.13 | N151: 2018.1 | P151: 2018-03-13 | Q151: 1.42 | S151: 2018.1 | U151: 2018-03-13 | V151: 2.84
D152: 2018.1 | F152: 2018-03-12 | G152: 3.13 | I152: 2018.1 | K152: 2018-03-12 | L152: 4.15 | N152: 2018.1 | P152: 2018-03-12 | Q152: 1.42 | S152: 2018.1 | U152: 2018-03-12 | V152: 2.87
D153: 2018.1 | F153: 2018-03-09 | G153: 3.16 | I153: 2018.1 | K153: 2018-03-09 | L153: 4.18 | N153: 2018.1 | P153: 2018-03-09 | Q153: 1.42 | S153: 2018.1 | U153: 2018-03-09 | V153: 2.9
D154: 2018.1 | F154: 2018-03-08 | G154: 3.13 | I154: 2018.1 | K154: 2018-03-08 | L154: 4.15 | N154: 2018.1 | P154: 2018-03-08 | Q154: 1.42 | S154: 2018.1 | U154: 2018-03-08 | V154: 2.86
D155: 2018.1 | F155: 2018-03-07 | G155: 3.15 | I155: 2018.1 | K155: 2018-03-07 | L155: 4.16 | N155: 2018.1 | P155: 2018-03-07 | Q155: 1.42 | S155: 2018.1 | U155: 2018-03-07 | V155: 2.89
D156: 2018.1 | F156: 2018-03-06 | G156: 3.14 | I156: 2018.1 | K156: 2018-03-06 | L156: 4.15 | N156: 2018.1 | P156: 2018-03-06 | Q156: 1.42 | S156: 2018.1 | U156: 2018-03-06 | V156: 2.88
D157: 2018.1 | F157: 2018-03-05 | G157: 3.16 | I157: 2018.1 | K157: 2018-03-05 | L157: 4.14 | N157: 2018.1 | P157: 2018-03-05 | Q157: 1.42 | S157: 2018.1 | U157: 2018-03-05 | V157: 2.88
D158: 2018.1 | F158: 2018-03-02 | G158: 3.14 | I158: 2018.1 | K158: 2018-03-02 | L158: 4.12 | N158: 2018.1 | P158: 2018-03-02 | Q158: 1.42 | S158: 2018.1 | U158: 2018-03-02 | V158: 2.86
D159: 2018.1 | F159: 2018-03-01 | G159: 3.09 | I159: 2018.1 | K159: 2018-03-01 | L159: 4.07 | N159: 2018.1 | P159: 2018-03-01 | Q159: 1.42 | S159: 2018.1 | U159: 2018-03-01 | V159: 2.81
D160: 2018.1 | F160: 2018-02-28 | G160: 3.13 | I160: 2018.1 | K160: 2018-02-28 | L160: 4.1 | N160: 2018.1 | P160: 2018-02-28 | Q160: 1.35 | S160: 2018.1 | U160: 2018-02-28 | V160: 2.87
D161: 2018.1 | F161: 2018-02-27 | G161: 3.17 | I161: 2018.1 | K161: 2018-02-27 | L161: 4.14 | N161: 2018.1 | P161: 2018-02-27 | Q161: 1.42 | S161: 2018.1 | U161: 2018-02-27 | V161: 2.9
D162: 2018.1 | F162: 2018-02-26 | G162: 3.15 | I162: 2018.1 | K162: 2018-02-26 | L162: 4.12 | N162: 2018.1 | P162: 2018-02-26 | Q162: 1.42 | S162: 2018.1 | U162: 2018-02-26 | V162: 2.86
D163: 2018.1 | F163: 2018-02-23 | G163: 3.16 | I163: 2018.1 | K163: 2018-02-23 | L163: 4.12 | N163: 2018.1 | P163: 2018-02-23 | Q163: 1.42 | S163: 2018.1 | U163: 2018-02-23 | V163: 2.88
D164: 2018.1 | F164: 2018-02-22 | G164: 3.21 | I164: 2018.1 | K164: 2018-02-22 | L164: 4.16 | N164: 2018.1 | P164: 2018-02-22 | Q164: 1.42 | S164: 2018.1 | U164: 2018-02-22 | V164: 2.92
D165: 2018.1 | F165: 2018-02-21 | G165: 3.22 | I165: 2018.1 | K165: 2018-02-21 | L165: 4.18 | N165: 2018.1 | P165: 2018-02-21 | Q165: 1.42 | S165: 2018.1 | U165: 2018-02-21 | V165: 2.94
D166: 2018.1 | F166: 2018-02-20 | G166: 3.15 | I166: 2018.1 | K166: 2018-02-20 | L166: 4.11 | N166: 2018.1 | P166: 2018-02-20 | Q166: 1.42 | S166: 2018.1 | U166: 2018-02-20 | V166: 2.88
D167: 2018.1 | F167: 2018-02-16 | G167: 3.13 | I167: 2018.1 | K167: 2018-02-16 | L167: 4.1 | N167: 2018.1 | P167: 2018-02-16 | Q167: 1.42 | S167: 2018.1 | U167: 2018-02-16 | V167: 2.87
D168: 2018.1 | F168: 2018-02-15 | G168: 3.15 | I168: 2018.1 | K168: 2018-02-15 | L168: 4.1 | N168: 2018.1 | P168: 2018-02-15 | Q168: 1.42 | S168: 2018.1 | U168: 2018-02-15 | V168: 2.9
D169: 2018.1 | F169: 2018-02-14 | G169: 3.18 | I169: 2018.1 | K169: 2018-02-14 | L169: 4.13 | N169: 2018.1 | P169: 2018-02-14 | Q169: 1.42 | S169: 2018.1 | U169: 2018-02-14 | V169: 2.91
D170: 2018.1 | F170: 2018-02-13 | G170: 3.11 | I170: 2018.1 | K170: 2018-02-13 | L170: 4.08 | N170: 2018.1 | P170: 2018-02-13 | Q170: 1.42 | S170: 2018.1 | U170: 2018-02-13 | V170: 2.83
D171: 2018.1 | F171: 2018-02-12 | G171: 3.14 | I171: 2018.1 | K171: 2018-02-12 | L171: 4.08 | N171: 2018.1 | P171: 2018-02-12 | Q171: 1.42 | S171: 2018.1 | U171: 2018-02-12 | V171: 2.86
D172: 2018.1 | F172: 2018-02-09 | G172: 3.14 | I172: 2018.1 | K172: 2018-02-09 | L172: 4.08 | N172: 2018.1 | P172: 2018-02-09 | Q172: 1.42 | S172: 2018.1 | U172: 2018-02-09 | V172: 2.83
D173: 2018.1 | F173: 2018-02-08 | G173: 3.14 | I173: 2018.1 | K173: 2018-02-08 | L173: 4.08 | N173: 2018.1 | P173: 2018-02-08 | Q173: 1.42 | S173: 2018.1 | U173: 2018-02-08 | V173: 2.85
D174: 2018.1 | F174: 2018-02-07 | G174: 3.12 | I174: 2018.1 | K174: 2018-02-07 | L174: 4.06 | N174: 2018.1 | P174: 2018-02-07 | Q174: 1.42 | S174: 2018.1 | U174: 2018-02-07 | V174: 2.84
D175: 2018.1 | F175: 2018-02-06 | G175: 3.06 | I175: 2018.1 | K175: 2018-02-06 | L175: 3.99 | N175: 2018.1 | P175: 2018-02-06 | Q175: 1.42 | S175: 2018.1 | U175: 2018-02-06 | V175: 2.79
D176: 2018.1 | F176: 2018-02-05 | G176: 3.04 | I176: 2018.1 | K176: 2018-02-05 | L176: 4.01 | N176: 2018.1 | P176: 2018-02-05 | Q176: 1.42 | S176: 2018.1 | U176: 2018-02-05 | V176: 2.77
D177: 2018.1 | F177: 2018-02-02 | G177: 3.08 | I177: 2018.1 | K177: 2018-02-02 | L177: 4.04 | N177: 2018.1 | P177: 2018-02-02 | Q177: 1.42 | S177: 2018.1 | U177: 2018-02-02 | V177: 2.84
D178: 2018.1 | F178: 2018-02-01 | G178: 3.01 | I178: 2018.1 | K178: 2018-02-01 | L178: 3.96 | N178: 2018.1 | P178: 2018-02-01 | Q178: 1.42 | S178: 2018.1 | U178: 2018-02-01 | V178: 2.78
D179: 2018.1 | F179: 2018-01-31 | G179: 2.95 | I179: 2018.1 | K179: 2018-01-31 | L179: 3.91 | N179: 2018.1 | P179: 2018-01-31 | Q179: 1.34 | S179: 2018.1 | U179: 2018-01-31 | V179: 2.72
D180: 2018.1 | F180: 2018-01-30 | G180: 2.98 | I180: 2018.1 | K180: 2018-01-30 | L180: 3.94 | N180: 2018.1 | P180: 2018-01-30 | Q180: 1.42 | S180: 2018.1 | U180: 2018-01-30 | V180: 2.73
D181: 2018.1 | F181: 2018-01-29 | G181: 2.94 | I181: 2018.1 | K181: 2018-01-29 | L181: 3.91 | N181: 2018.1 | P181: 2018-01-29 | Q181: 1.42 | S181: 2018.1 | U181: 2018-01-29 | V181: 2.7
D182: 2018.1 | F182: 2018-01-26 | G182: 2.91 | I182: 2018.1 | K182: 2018-01-26 | L182: 3.88 | N182: 2018.1 | P182: 2018-01-26 | Q182: 1.42 | S182: 2018.1 | U182: 2018-01-26 | V182: 2.66
D183: 2018.1 | F183: 2018-01-25 | G183: 2.89 | I183: 2018.1 | K183: 2018-01-25 | L183: 3.85 | N183: 2018.1 | P183: 2018-01-25 | Q183: 1.42 | S183: 2018.1 | U183: 2018-01-25 | V183: 2.63
D184: 2018.1 | F184: 2018-01-24 | G184: 2.93 | I184: 2018.1 | K184: 2018-01-24 | L184: 3.91 | N184: 2018.1 | P184: 2018-01-24 | Q184: 1.42 | S184: 2018.1 | U184: 2018-01-24 | V184: 2.65
D185: 2018.1 | F185: 2018-01-23 | G185: 2.9 | I185: 2018.1 | K185: 2018-01-23 | L185: 3.88 | N185: 2018.1 | P185: 2018-01-23 | Q185: 1.42 | S185: 2018.1 | U185: 2018-01-23 | V185: 2.63
D186: 2018.1 | F186: 2018-01-22 | G186: 2.93 | I186: 2018.1 | K186: 2018-01-22 | L186: 3.9 | N186: 2018.1 | P186: 2018-01-22 | Q186: 1.42 | S186: 2018.1 | U186: 2018-01-22 | V186: 2.66
D187: 2018.1 | F187: 2018-01-19 | G187: 2.91 | I187: 2018.1 | K187: 2018-01-19 | L187: 3.89 | N187: 2018.1 | P187: 2018-01-19 | Q187: 1.42 | S187: 2018.1 | U187: 2018-01-19 | V187: 2.64
D188: 2018.1 | F188: 2018-01-18 | G188: 2.9 | I188: 2018.1 | K188: 2018-01-18 | L188: 3.87 | N188: 2018.1 | P188: 2018-01-18 | Q188: 1.42 | S188: 2018.1 | U188: 2018-01-18 | V188: 2.62
D189: 2018.1 | F189: 2018-01-17 | G189: 2.84 | I189: 2018.1 | K189: 2018-01-17 | L189: 3.83 | N189: 2018.1 | P189: 2018-01-17 | Q189: 1.42 | S189: 2018.1 | U189: 2018-01-17 | V189: 2.57
D190: 2018.1 | F190: 2018-01-16 | G190: 2.83 | I190: 2018.1 | K190: 2018-01-16 | L190: 3.82 | N190: 2018.1 | P190: 2018-01-16 | Q190: 1.42 | S190: 2018.1 | U190: 2018-01-16 | V190: 2.54
D191: 2018.1 | F191: 2018-01-12 | G191: 2.85 | I191: 2018.1 | K191: 2018-01-12 | L191: 3.84 | N191: 2018.1 | P191: 2018-01-12 | Q191: 1.42 | S191: 2018.1 | U191: 2018-01-12 | V191: 2.55
D192: 2018.1 | F192: 2018-01-11 | G192: 2.91 | I192: 2018.1 | K192: 2018-01-11 | L192: 3.84 | N192: 2018.1 | P192: 2018-01-11 | Q192: 1.42 | S192: 2018.1 | U192: 2018-01-11 | V192: 2.54
D193: 2018.1 | F193: 2018-01-10 | G193: 2.88 | I193: 2018.1 | K193: 2018-01-10 | L193: 3.88 | N193: 2018.1 | P193: 2018-01-10 | Q193: 1.42 | S193: 2018.1 | U193: 2018-01-10 | V193: 2.55
D194: 2018.1 | F194: 2018-01-09 | G194: 2.88 | I194: 2018.1 | K194: 2018-01-09 | L194: 3.88 | N194: 2018.1 | P194: 2018-01-09 | Q194: 1.42 | S194: 2018.1 | U194: 2018-01-09 | V194: 2.55
D195: 2018.1 | F195: 2018-01-08 | G195: 2.81 | I195: 2018.1 | K195: 2018-01-08 | L195: 3.82 | N195: 2018.1 | P195: 2018-01-08 | Q195: 1.42 | S195: 2018.1 | U195: 2018-01-08 | V195: 2.49
D196: =YEAR(F196)&"."&INT((MONTH(F196)-1)/3)+1 -> 2018.1 | F196: 2018-01-05 | G196: 2.81 | I196: =YEAR(K196)&"."&INT((MONTH(K196)-1)/3)+1 -> 2018.1 | K196: 2018-01-05 | L196: 3.82 | N196: =YEAR(P196)&"."&INT((MONTH(P196)-1)/3)+1 -> 2018.1 | P196: 2018-01-05 | Q196: 1.42 | S196: =YEAR(U196)&"."&INT((MONTH(U196)-1)/3)+1 -> 2018.1 | U196: 2018-01-05 | V196: 2.47
D197: 2018.1 | F197: 2018-01-04 | G197: 2.79 | I197: 2018.1 | K197: 2018-01-04 | L197: 3.79 | N197: 2018.1 | P197: 2018-01-04 | Q197: 1.42 | S197: 2018.1 | U197: 2018-01-04 | V197: 2.46
D198: 2018.1 | F198: 2018-01-03 | G198: 2.78 | I198: 2018.1 | K198: 2018-01-03 | L198: 3.79 | N198: 2018.1 | P198: 2018-01-03 | Q198: 1.42 | S198: 2018.1 | U198: 2018-01-03 | V198: 2.44
D199: 2018.1 | F199: 2018-01-02 | G199: 2.81 | I199: 2018.1 | K199: 2018-01-02 | L199: 3.82 | N199: 2018.1 | P199: 2018-01-02 | Q199: 1.42 | S199: 2018.1 | U199: 2018-01-02 | V199: 2.46
D200: 2017.4 | F200: 2017-12-29 | G200: 2.74 | I200: 2017.4 | K200: 2017-12-29 | L200: 3.76 | N200: 2017.4 | P200: 2017-12-29 | Q200: 1.33 | S200: 2017.4 | U200: 2017-12-29 | V200: 2.4
... 4300 more rows

Sheet Moodys 30-Year Spread
A1: H15T30Y Index
A2: Date | B2: Moody's Index | C2: 30-Year | D2: Spread | G2: Average Spread
A3: 2018-09-28 | B3: =VLOOKUP($A3,Bloomberg!K:L,2,FALSE) -> 4.33 | C3: =VLOOKUP($A3,Bloomberg!F:G,2,FALSE) -> 3.19 | D3: =B3-C3 -> 1.14 | G3: January 1, 2015 - September 28, 2018
A4: 2018-09-27 | B4: =VLOOKUP($A4,Bloomberg!K:L,2,FALSE) -> 4.33 | C4: =VLOOKUP($A4,Bloomberg!F:G,2,FALSE) -> 3.19 | D4: 1.14 | G4: =AVERAGE($D$3:$D$939) -> 1.215923159
A5: 2018-09-26 | B5: =VLOOKUP($A5,Bloomberg!K:L,2,FALSE) -> 4.34 | C5: =VLOOKUP($A5,Bloomberg!F:G,2,FALSE) -> 3.19 | D5: 1.15 | G5: =G4/100 -> 0.01215923159
A6: 2018-09-25 | B6: =VLOOKUP($A6,Bloomberg!K:L,2,FALSE) -> 4.37 | C6: =VLOOKUP($A6,Bloomberg!F:G,2,FALSE) -> 3.23 | D6: 1.14
A7: 2018-09-24 | B7: =VLOOKUP($A7,Bloomberg!K:L,2,FALSE) -> 4.36 | C7: =VLOOKUP($A7,Bloomberg!F:G,2,FALSE) -> 3.21 | D7: 1.15
A8: 2018-09-21 | B8: =VLOOKUP($A8,Bloomberg!K:L,2,FALSE) -> 4.36 | C8: =VLOOKUP($A8,Bloomberg!F:G,2,FALSE) -> 3.2 | D8: 1.16
A9: 2018-09-20 | B9: =VLOOKUP($A9,Bloomberg!K:L,2,FALSE) -> 4.37 | C9: =VLOOKUP($A9,Bloomberg!F:G,2,FALSE) -> 3.21 | D9: 1.16
A10: 2018-09-19 | B10: =VLOOKUP($A10,Bloomberg!K:L,2,FALSE) -> 4.4 | C10: =VLOOKUP($A10,Bloomberg!F:G,2,FALSE) -> 3.23 | D10: 1.17
A11: 2018-09-18 | B11: =VLOOKUP($A11,Bloomberg!K:L,2,FALSE) -> 4.36 | C11: =VLOOKUP($A11,Bloomberg!F:G,2,FALSE) -> 3.2 | D11: 1.16
A12: 2018-09-17 | B12: =VLOOKUP($A12,Bloomberg!K:L,2,FALSE) -> 4.3 | C12: =VLOOKUP($A12,Bloomberg!F:G,2,FALSE) -> 3.13 | D12: 1.17
A13: 2018-09-14 | B13: =VLOOKUP($A13,Bloomberg!K:L,2,FALSE) -> 4.3 | C13: =VLOOKUP($A13,Bloomberg!F:G,2,FALSE) -> 3.13 | D13: 1.17
A14: 2018-09-13 | B14: =VLOOKUP($A14,Bloomberg!K:L,2,FALSE) -> 4.27 | C14: =VLOOKUP($A14,Bloomberg!F:G,2,FALSE) -> 3.11 | D14: 1.16
A15: 2018-09-12 | B15: =VLOOKUP($A15,Bloomberg!K:L,2,FALSE) -> 4.29 | C15: =VLOOKUP($A15,Bloomberg!F:G,2,FALSE) -> 3.11 | D15: 1.18
A16: 2018-09-11 | B16: =VLOOKUP($A16,Bloomberg!K:L,2,FALSE) -> 4.3 | C16: =VLOOKUP($A16,Bloomberg!F:G,2,FALSE) -> 3.13 | D16: 1.17
A17: 2018-09-10 | B17: =VLOOKUP($A17,Bloomberg!K:L,2,FALSE) -> 4.27 | C17: =VLOOKUP($A17,Bloomberg!F:G,2,FALSE) -> 3.09 | D17: 1.18
A18: 2018-09-07 | B18: =VLOOKUP($A18,Bloomberg!K:L,2,FALSE) -> 4.29 | C18: =VLOOKUP($A18,Bloomberg!F:G,2,FALSE) -> 3.11 | D18: 1.18
A19: 2018-09-06 | B19: =VLOOKUP($A19,Bloomberg!K:L,2,FALSE) -> 4.28 | C19: =VLOOKUP($A19,Bloomberg!F:G,2,FALSE) -> 3.06 | D19: 1.22
A20: 2018-09-05 | B20: =VLOOKUP($A20,Bloomberg!K:L,2,FALSE) -> 4.31 | C20: =VLOOKUP($A20,Bloomberg!F:G,2,FALSE) -> 3.08 | D20: 1.23
A21: 2018-09-04 | B21: =VLOOKUP($A21,Bloomberg!K:L,2,FALSE) -> 4.3 | C21: =VLOOKUP($A21,Bloomberg!F:G,2,FALSE) -> 3.07 | D21: 1.23
A22: 2018-08-31 | B22: =VLOOKUP($A22,Bloomberg!K:L,2,FALSE) -> 4.24 | C22: =VLOOKUP($A22,Bloomberg!F:G,2,FALSE) -> 3.02 | D22: =B22-C22 -> 1.22
A23: 2018-08-30 | B23: =VLOOKUP($A23,Bloomberg!K:L,2,FALSE) -> 4.24 | C23: =VLOOKUP($A23,Bloomberg!F:G,2,FALSE) -> 3 | D23: 1.24
A24: 2018-08-29 | B24: =VLOOKUP($A24,Bloomberg!K:L,2,FALSE) -> 4.25 | C24: =VLOOKUP($A24,Bloomberg!F:G,2,FALSE) -> 3.02 | D24: 1.23
A25: 2018-08-28 | B25: =VLOOKUP($A25,Bloomberg!K:L,2,FALSE) -> 4.26 | C25: =VLOOKUP($A25,Bloomberg!F:G,2,FALSE) -> 3.03 | D25: 1.23
A26: 2018-08-27 | B26: =VLOOKUP($A26,Bloomberg!K:L,2,FALSE) -> 4.23 | C26: =VLOOKUP($A26,Bloomberg!F:G,2,FALSE) -> 3 | D26: 1.23
A27: 2018-08-24 | B27: =VLOOKUP($A27,Bloomberg!K:L,2,FALSE) -> 4.21 | C27: =VLOOKUP($A27,Bloomberg!F:G,2,FALSE) -> 2.97 | D27: 1.24
A28: 2018-08-23 | B28: =VLOOKUP($A28,Bloomberg!K:L,2,FALSE) -> 4.21 | C28: =VLOOKUP($A28,Bloomberg!F:G,2,FALSE) -> 2.97 | D28: 1.24
A29: 2018-08-22 | B29: =VLOOKUP($A29,Bloomberg!K:L,2,FALSE) -> 4.22 | C29: =VLOOKUP($A29,Bloomberg!F:G,2,FALSE) -> 2.99 | D29: 1.23
A30: 2018-08-21 | B30: =VLOOKUP($A30,Bloomberg!K:L,2,FALSE) -> 4.23 | C30: =VLOOKUP($A30,Bloomberg!F:G,2,FALSE) -> 3 | D30: 1.23
A31: 2018-08-20 | B31: =VLOOKUP($A31,Bloomberg!K:L,2,FALSE) -> 4.21 | C31: =VLOOKUP($A31,Bloomberg!F:G,2,FALSE) -> 2.99 | D31: 1.22
A32: 2018-08-17 | B32: =VLOOKUP($A32,Bloomberg!K:L,2,FALSE) -> 4.25 | C32: =VLOOKUP($A32,Bloomberg!F:G,2,FALSE) -> 3.03 | D32: 1.22
A33: 2018-08-16 | B33: =VLOOKUP($A33,Bloomberg!K:L,2,FALSE) -> 4.26 | C33: =VLOOKUP($A33,Bloomberg!F:G,2,FALSE) -> 3.03 | D33: 1.23
A34: 2018-08-15 | B34: =VLOOKUP($A34,Bloomberg!K:L,2,FALSE) -> 4.25 | C34: =VLOOKUP($A34,Bloomberg!F:G,2,FALSE) -> 3.03 | D34: 1.22
A35: 2018-08-14 | B35: =VLOOKUP($A35,Bloomberg!K:L,2,FALSE) -> 4.27 | C35: =VLOOKUP($A35,Bloomberg!F:G,2,FALSE) -> 3.06 | D35: 1.21
A36: 2018-08-13 | B36: =VLOOKUP($A36,Bloomberg!K:L,2,FALSE) -> 4.25 | C36: =VLOOKUP($A36,Bloomberg!F:G,2,FALSE) -> 3.05 | D36: 1.2
A37: 2018-08-10 | B37: =VLOOKUP($A37,Bloomberg!K:L,2,FALSE) -> 4.22 | C37: =VLOOKUP($A37,Bloomberg!F:G,2,FALSE) -> 3.03 | D37: 1.19
A38: 2018-08-09 | B38: =VLOOKUP($A38,Bloomberg!K:L,2,FALSE) -> 4.28 | C38: =VLOOKUP($A38,Bloomberg!F:G,2,FALSE) -> 3.08 | D38: 1.2
A39: 2018-08-08 | B39: =VLOOKUP($A39,Bloomberg!K:L,2,FALSE) -> 4.31 | C39: =VLOOKUP($A39,Bloomberg!F:G,2,FALSE) -> 3.12 | D39: 1.19
A40: 2018-08-07 | B40: =VLOOKUP($A40,Bloomberg!K:L,2,FALSE) -> 4.31 | C40: =VLOOKUP($A40,Bloomberg!F:G,2,FALSE) -> 3.12 | D40: 1.19
A41: 2018-08-06 | B41: =VLOOKUP($A41,Bloomberg!K:L,2,FALSE) -> 4.29 | C41: =VLOOKUP($A41,Bloomberg!F:G,2,FALSE) -> 3.08 | D41: 1.21
A42: 2018-08-03 | B42: =VLOOKUP($A42,Bloomberg!K:L,2,FALSE) -> 4.3 | C42: =VLOOKUP($A42,Bloomberg!F:G,2,FALSE) -> 3.09 | D42: 1.21
A43: 2018-08-02 | B43: =VLOOKUP($A43,Bloomberg!K:L,2,FALSE) -> 4.33 | C43: =VLOOKUP($A43,Bloomberg!F:G,2,FALSE) -> 3.12 | D43: 1.21
A44: 2018-08-01 | B44: =VLOOKUP($A44,Bloomberg!K:L,2,FALSE) -> 4.35 | C44: =VLOOKUP($A44,Bloomberg!F:G,2,FALSE) -> 3.13 | D44: 1.22
A45: 2018-07-31 | B45: =VLOOKUP($A45,Bloomberg!K:L,2,FALSE) -> 4.31 | C45: =VLOOKUP($A45,Bloomberg!F:G,2,FALSE) -> 3.08 | D45: =B45-C45 -> 1.23
A46: 2018-07-30 | B46: =VLOOKUP($A46,Bloomberg!K:L,2,FALSE) -> 4.33 | C46: =VLOOKUP($A46,Bloomberg!F:G,2,FALSE) -> 3.11 | D46: 1.22
A47: 2018-07-27 | B47: =VLOOKUP($A47,Bloomberg!K:L,2,FALSE) -> 4.32 | C47: =VLOOKUP($A47,Bloomberg!F:G,2,FALSE) -> 3.09 | D47: 1.23
A48: 2018-07-26 | B48: =VLOOKUP($A48,Bloomberg!K:L,2,FALSE) -> 4.33 | C48: =VLOOKUP($A48,Bloomberg!F:G,2,FALSE) -> 3.1 | D48: 1.23
A49: 2018-07-25 | B49: =VLOOKUP($A49,Bloomberg!K:L,2,FALSE) -> 4.3 | C49: =VLOOKUP($A49,Bloomberg!F:G,2,FALSE) -> 3.06 | D49: 1.24
A50: 2018-07-24 | B50: =VLOOKUP($A50,Bloomberg!K:L,2,FALSE) -> 4.32 | C50: =VLOOKUP($A50,Bloomberg!F:G,2,FALSE) -> 3.08 | D50: 1.24
A51: 2018-07-23 | B51: =VLOOKUP($A51,Bloomberg!K:L,2,FALSE) -> 4.35 | C51: =VLOOKUP($A51,Bloomberg!F:G,2,FALSE) -> 3.1 | D51: 1.25
A52: 2018-07-20 | B52: =VLOOKUP($A52,Bloomberg!K:L,2,FALSE) -> 4.29 | C52: =VLOOKUP($A52,Bloomberg!F:G,2,FALSE) -> 3.03 | D52: 1.26
A53: 2018-07-19 | B53: =VLOOKUP($A53,Bloomberg!K:L,2,FALSE) -> 4.23 | C53: =VLOOKUP($A53,Bloomberg!F:G,2,FALSE) -> 2.96 | D53: 1.27
A54: 2018-07-18 | B54: =VLOOKUP($A54,Bloomberg!K:L,2,FALSE) -> 4.25 | C54: =VLOOKUP($A54,Bloomberg!F:G,2,FALSE) -> 2.99 | D54: 1.26
A55: 2018-07-17 | B55: =VLOOKUP($A55,Bloomberg!K:L,2,FALSE) -> 4.24 | C55: =VLOOKUP($A55,Bloomberg!F:G,2,FALSE) -> 2.97 | D55: 1.27
A56: 2018-07-16 | B56: =VLOOKUP($A56,Bloomberg!K:L,2,FALSE) -> 4.25 | C56: =VLOOKUP($A56,Bloomberg!F:G,2,FALSE) -> 2.96 | D56: 1.29
A57: 2018-07-13 | B57: =VLOOKUP($A57,Bloomberg!K:L,2,FALSE) -> 4.21 | C57: =VLOOKUP($A57,Bloomberg!F:G,2,FALSE) -> 2.94 | D57: 1.27
A58: 2018-07-12 | B58: =VLOOKUP($A58,Bloomberg!K:L,2,FALSE) -> 4.23 | C58: =VLOOKUP($A58,Bloomberg!F:G,2,FALSE) -> 2.95 | D58: 1.28
A59: 2018-07-11 | B59: =VLOOKUP($A59,Bloomberg!K:L,2,FALSE) -> 4.23 | C59: =VLOOKUP($A59,Bloomberg!F:G,2,FALSE) -> 2.95 | D59: 1.28
A60: 2018-07-10 | B60: =VLOOKUP($A60,Bloomberg!K:L,2,FALSE) -> 4.26 | C60: =VLOOKUP($A60,Bloomberg!F:G,2,FALSE) -> 2.97 | D60: 1.29
A61: 2018-07-09 | B61: =VLOOKUP($A61,Bloomberg!K:L,2,FALSE) -> 4.26 | C61: =VLOOKUP($A61,Bloomberg!F:G,2,FALSE) -> 2.96 | D61: 1.3
A62: 2018-07-06 | B62: =VLOOKUP($A62,Bloomberg!K:L,2,FALSE) -> 4.23 | C62: =VLOOKUP($A62,Bloomberg!F:G,2,FALSE) -> 2.94 | D62: 1.29
A63: 2018-07-05 | B63: =VLOOKUP($A63,Bloomberg!K:L,2,FALSE) -> 4.25 | C63: =VLOOKUP($A63,Bloomberg!F:G,2,FALSE) -> 2.95 | D63: 1.3
A64: 2018-07-03 | B64: =VLOOKUP($A64,Bloomberg!K:L,2,FALSE) -> 4.26 | C64: =VLOOKUP($A64,Bloomberg!F:G,2,FALSE) -> 2.96 | D64: 1.3
A65: 2018-07-02 | B65: =VLOOKUP($A65,Bloomberg!K:L,2,FALSE) -> 4.28 | C65: =VLOOKUP($A65,Bloomberg!F:G,2,FALSE) -> 2.99 | D65: 1.29
A66: 2018-06-29 | B66: =VLOOKUP($A66,Bloomberg!K:L,2,FALSE) -> 4.27 | C66: =VLOOKUP($A66,Bloomberg!F:G,2,FALSE) -> 2.98 | D66: 1.29
A67: 2018-06-28 | B67: =VLOOKUP($A67,Bloomberg!K:L,2,FALSE) -> 4.27 | C67: =VLOOKUP($A67,Bloomberg!F:G,2,FALSE) -> 2.97 | D67: 1.3
A68: 2018-06-27 | B68: =VLOOKUP($A68,Bloomberg!K:L,2,FALSE) -> 4.25 | C68: =VLOOKUP($A68,Bloomberg!F:G,2,FALSE) -> 2.97 | D68: 1.28
A69: 2018-06-26 | B69: =VLOOKUP($A69,Bloomberg!K:L,2,FALSE) -> 4.29 | C69: =VLOOKUP($A69,Bloomberg!F:G,2,FALSE) -> 3.03 | D69: 1.26
A70: 2018-06-25 | B70: =VLOOKUP($A70,Bloomberg!K:L,2,FALSE) -> 4.27 | C70: =VLOOKUP($A70,Bloomberg!F:G,2,FALSE) -> 3.02 | D70: 1.25
A71: 2018-06-22 | B71: =VLOOKUP($A71,Bloomberg!K:L,2,FALSE) -> 4.28 | C71: =VLOOKUP($A71,Bloomberg!F:G,2,FALSE) -> 3.04 | D71: 1.24
A72: 2018-06-21 | B72: =VLOOKUP($A72,Bloomberg!K:L,2,FALSE) -> 4.28 | C72: =VLOOKUP($A72,Bloomberg!F:G,2,FALSE) -> 3.04 | D72: 1.24
A73: 2018-06-20 | B73: =VLOOKUP($A73,Bloomberg!K:L,2,FALSE) -> 4.29 | C73: =VLOOKUP($A73,Bloomberg!F:G,2,FALSE) -> 3.06 | D73: 1.23
A74: 2018-06-19 | B74: =VLOOKUP($A74,Bloomberg!K:L,2,FALSE) -> 4.25 | C74: =VLOOKUP($A74,Bloomberg!F:G,2,FALSE) -> 3.02 | D74: 1.23
A75: 2018-06-18 | B75: =VLOOKUP($A75,Bloomberg!K:L,2,FALSE) -> 4.27 | C75: =VLOOKUP($A75,Bloomberg!F:G,2,FALSE) -> 3.05 | D75: 1.22
A76: 2018-06-15 | B76: =VLOOKUP($A76,Bloomberg!K:L,2,FALSE) -> 4.25 | C76: =VLOOKUP($A76,Bloomberg!F:G,2,FALSE) -> 3.05 | D76: 1.2
A77: 2018-06-14 | B77: =VLOOKUP($A77,Bloomberg!K:L,2,FALSE) -> 4.27 | C77: =VLOOKUP($A77,Bloomberg!F:G,2,FALSE) -> 3.05 | D77: 1.22
A78: 2018-06-13 | B78: =VLOOKUP($A78,Bloomberg!K:L,2,FALSE) -> 4.3 | C78: =VLOOKUP($A78,Bloomberg!F:G,2,FALSE) -> 3.1 | D78: 1.2
A79: 2018-06-12 | B79: =VLOOKUP($A79,Bloomberg!K:L,2,FALSE) -> 4.29 | C79: =VLOOKUP($A79,Bloomberg!F:G,2,FALSE) -> 3.09 | D79: 1.2
A80: 2018-06-11 | B80: =VLOOKUP($A80,Bloomberg!K:L,2,FALSE) -> 4.29 | C80: =VLOOKUP($A80,Bloomberg!F:G,2,FALSE) -> 3.1 | D80: 1.19
A81: 2018-06-08 | B81: =VLOOKUP($A81,Bloomberg!K:L,2,FALSE) -> 4.27 | C81: =VLOOKUP($A81,Bloomberg!F:G,2,FALSE) -> 3.08 | D81: 1.19
A82: 2018-06-07 | B82: =VLOOKUP($A82,Bloomberg!K:L,2,FALSE) -> 4.27 | C82: =VLOOKUP($A82,Bloomberg!F:G,2,FALSE) -> 3.08 | D82: 1.19
A83: 2018-06-06 | B83: =VLOOKUP($A83,Bloomberg!K:L,2,FALSE) -> 4.32 | C83: =VLOOKUP($A83,Bloomberg!F:G,2,FALSE) -> 3.13 | D83: 1.19
A84: 2018-06-05 | B84: =VLOOKUP($A84,Bloomberg!K:L,2,FALSE) -> 4.27 | C84: =VLOOKUP($A84,Bloomberg!F:G,2,FALSE) -> 3.07 | D84: 1.2
A85: 2018-06-04 | B85: =VLOOKUP($A85,Bloomberg!K:L,2,FALSE) -> 4.27 | C85: =VLOOKUP($A85,Bloomberg!F:G,2,FALSE) -> 3.08 | D85: 1.19
A86: 2018-06-01 | B86: =VLOOKUP($A86,Bloomberg!K:L,2,FALSE) -> 4.24 | C86: =VLOOKUP($A86,Bloomberg!F:G,2,FALSE) -> 3.04 | D86: 1.2
A87: 2018-05-31 | B87: =VLOOKUP($A87,Bloomberg!K:L,2,FALSE) -> 4.17 | C87: =VLOOKUP($A87,Bloomberg!F:G,2,FALSE) -> 3 | D87: 1.17
A88: 2018-05-30 | B88: =VLOOKUP($A88,Bloomberg!K:L,2,FALSE) -> 4.2 | C88: =VLOOKUP($A88,Bloomberg!F:G,2,FALSE) -> 3.01 | D88: 1.19
A89: 2018-05-29 | B89: =VLOOKUP($A89,Bloomberg!K:L,2,FALSE) -> 4.17 | C89: =VLOOKUP($A89,Bloomberg!F:G,2,FALSE) -> 2.96 | D89: 1.21
A90: 2018-05-25 | B90: =VLOOKUP($A90,Bloomberg!K:L,2,FALSE) -> 4.24 | C90: =VLOOKUP($A90,Bloomberg!F:G,2,FALSE) -> 3.09 | D90: 1.15
A91: 2018-05-24 | B91: =VLOOKUP($A91,Bloomberg!K:L,2,FALSE) -> 4.28 | C91: =VLOOKUP($A91,Bloomberg!F:G,2,FALSE) -> 3.13 | D91: 1.15
A92: 2018-05-23 | B92: =VLOOKUP($A92,Bloomberg!K:L,2,FALSE) -> 4.32 | C92: =VLOOKUP($A92,Bloomberg!F:G,2,FALSE) -> 3.17 | D92: 1.15
A93: 2018-05-22 | B93: =VLOOKUP($A93,Bloomberg!K:L,2,FALSE) -> 4.36 | C93: =VLOOKUP($A93,Bloomberg!F:G,2,FALSE) -> 3.21 | D93: 1.15
A94: 2018-05-21 | B94: =VLOOKUP($A94,Bloomberg!K:L,2,FALSE) -> 4.35 | C94: =VLOOKUP($A94,Bloomberg!F:G,2,FALSE) -> 3.2 | D94: 1.15
A95: 2018-05-18 | B95: =VLOOKUP($A95,Bloomberg!K:L,2,FALSE) -> 4.36 | C95: =VLOOKUP($A95,Bloomberg!F:G,2,FALSE) -> 3.2 | D95: 1.16
A96: 2018-05-17 | B96: =VLOOKUP($A96,Bloomberg!K:L,2,FALSE) -> 4.39 | C96: =VLOOKUP($A96,Bloomberg!F:G,2,FALSE) -> 3.25 | D96: 1.14
A97: 2018-05-16 | B97: =VLOOKUP($A97,Bloomberg!K:L,2,FALSE) -> 4.37 | C97: =VLOOKUP($A97,Bloomberg!F:G,2,FALSE) -> 3.21 | D97: 1.16
A98: 2018-05-15 | B98: =VLOOKUP($A98,Bloomberg!K:L,2,FALSE) -> 4.36 | C98: =VLOOKUP($A98,Bloomberg!F:G,2,FALSE) -> 3.2 | D98: 1.16
A99: 2018-05-14 | B99: =VLOOKUP($A99,Bloomberg!K:L,2,FALSE) -> 4.28 | C99: =VLOOKUP($A99,Bloomberg!F:G,2,FALSE) -> 3.13 | D99: 1.15
A100: 2018-05-11 | B100: =VLOOKUP($A100,Bloomberg!K:L,2,FALSE) -> 4.26 | C100: =VLOOKUP($A100,Bloomberg!F:G,2,FALSE) -> 3.1 | D100: 1.16
A101: 2018-05-10 | B101: =VLOOKUP($A101,Bloomberg!K:L,2,FALSE) -> 4.27 | C101: =VLOOKUP($A101,Bloomberg!F:G,2,FALSE) -> 3.12 | D101: 1.15
A102: 2018-05-09 | B102: =VLOOKUP($A102,Bloomberg!K:L,2,FALSE) -> 4.29 | C102: =VLOOKUP($A102,Bloomberg!F:G,2,FALSE) -> 3.16 | D102: 1.13
A103: 2018-05-08 | B103: =VLOOKUP($A103,Bloomberg!K:L,2,FALSE) -> 4.26 | C103: =VLOOKUP($A103,Bloomberg!F:G,2,FALSE) -> 3.13 | D103: 1.13
A104: 2018-05-07 | B104: =VLOOKUP($A104,Bloomberg!K:L,2,FALSE) -> 4.25 | C104: =VLOOKUP($A104,Bloomberg!F:G,2,FALSE) -> 3.12 | D104: 1.13
A105: 2018-05-04 | B105: =VLOOKUP($A105,Bloomberg!K:L,2,FALSE) -> 4.24 | C105: =VLOOKUP($A105,Bloomberg!F:G,2,FALSE) -> 3.12 | D105: 1.12
A106: 2018-05-03 | B106: =VLOOKUP($A106,Bloomberg!K:L,2,FALSE) -> 4.23 | C106: =VLOOKUP($A106,Bloomberg!F:G,2,FALSE) -> 3.12 | D106: 1.11
A107: 2018-05-02 | B107: =VLOOKUP($A107,Bloomberg!K:L,2,FALSE) -> 4.24 | C107: =VLOOKUP($A107,Bloomberg!F:G,2,FALSE) -> 3.14 | D107: 1.1
A108: 2018-05-01 | B108: =VLOOKUP($A108,Bloomberg!K:L,2,FALSE) -> 4.24 | C108: =VLOOKUP($A108,Bloomberg!F:G,2,FALSE) -> 3.13 | D108: 1.11
A109: 2018-04-30 | B109: =VLOOKUP($A109,Bloomberg!K:L,2,FALSE) -> 4.19 | C109: =VLOOKUP($A109,Bloomberg!F:G,2,FALSE) -> 3.11 | D109: =B109-C109 -> 1.08
A110: 2018-04-27 | B110: =VLOOKUP($A110,Bloomberg!K:L,2,FALSE) -> 4.22 | C110: =VLOOKUP($A110,Bloomberg!F:G,2,FALSE) -> 3.13 | D110: 1.09
A111: 2018-04-26 | B111: =VLOOKUP($A111,Bloomberg!K:L,2,FALSE) -> 4.27 | C111: =VLOOKUP($A111,Bloomberg!F:G,2,FALSE) -> 3.18 | D111: 1.09
A112: 2018-04-25 | B112: =VLOOKUP($A112,Bloomberg!K:L,2,FALSE) -> 4.3 | C112: =VLOOKUP($A112,Bloomberg!F:G,2,FALSE) -> 3.21 | D112: 1.09
A113: 2018-04-24 | B113: =VLOOKUP($A113,Bloomberg!K:L,2,FALSE) -> 4.26 | C113: =VLOOKUP($A113,Bloomberg!F:G,2,FALSE) -> 3.18 | D113: 1.08
A114: 2018-04-23 | B114: =VLOOKUP($A114,Bloomberg!K:L,2,FALSE) -> 4.24 | C114: =VLOOKUP($A114,Bloomberg!F:G,2,FALSE) -> 3.15 | D114: 1.09
A115: 2018-04-20 | B115: =VLOOKUP($A115,Bloomberg!K:L,2,FALSE) -> 4.23 | C115: =VLOOKUP($A115,Bloomberg!F:G,2,FALSE) -> 3.14 | D115: 1.09
A116: 2018-04-19 | B116: =VLOOKUP($A116,Bloomberg!K:L,2,FALSE) -> 4.2 | C116: =VLOOKUP($A116,Bloomberg!F:G,2,FALSE) -> 3.11 | D116: 1.09
A117: 2018-04-18 | B117: =VLOOKUP($A117,Bloomberg!K:L,2,FALSE) -> 4.14 | C117: =VLOOKUP($A117,Bloomberg!F:G,2,FALSE) -> 3.06 | D117: 1.08
A118: 2018-04-17 | B118: =VLOOKUP($A118,Bloomberg!K:L,2,FALSE) -> 4.1 | C118: =VLOOKUP($A118,Bloomberg!F:G,2,FALSE) -> 3 | D118: 1.1
A119: 2018-04-16 | B119: =VLOOKUP($A119,Bloomberg!K:L,2,FALSE) -> 4.13 | C119: =VLOOKUP($A119,Bloomberg!F:G,2,FALSE) -> 3.03 | D119: 1.1
A120: 2018-04-13 | B120: =VLOOKUP($A120,Bloomberg!K:L,2,FALSE) -> 4.13 | C120: =VLOOKUP($A120,Bloomberg!F:G,2,FALSE) -> 3.03 | D120: 1.1
A121: 2018-04-12 | B121: =VLOOKUP($A121,Bloomberg!K:L,2,FALSE) -> 4.14 | C121: =VLOOKUP($A121,Bloomberg!F:G,2,FALSE) -> 3.05 | D121: 1.09
A122: 2018-04-11 | B122: =VLOOKUP($A122,Bloomberg!K:L,2,FALSE) -> 4.1 | C122: =VLOOKUP($A122,Bloomberg!F:G,2,FALSE) -> 2.99 | D122: 1.11
A123: 2018-04-10 | B123: =VLOOKUP($A123,Bloomberg!K:L,2,FALSE) -> 4.12 | C123: =VLOOKUP($A123,Bloomberg!F:G,2,FALSE) -> 3.02 | D123: 1.1
A124: 2018-04-09 | B124: =VLOOKUP($A124,Bloomberg!K:L,2,FALSE) -> 4.12 | C124: =VLOOKUP($A124,Bloomberg!F:G,2,FALSE) -> 3.02 | D124: 1.1
A125: 2018-04-06 | B125: =VLOOKUP($A125,Bloomberg!K:L,2,FALSE) -> 4.12 | C125: =VLOOKUP($A125,Bloomberg!F:G,2,FALSE) -> 3.01 | D125: 1.11
A126: 2018-04-05 | B126: =VLOOKUP($A126,Bloomberg!K:L,2,FALSE) -> 4.17 | C126: =VLOOKUP($A126,Bloomberg!F:G,2,FALSE) -> 3.07 | D126: 1.1
A127: 2018-04-04 | B127: =VLOOKUP($A127,Bloomberg!K:L,2,FALSE) -> 4.13 | C127: =VLOOKUP($A127,Bloomberg!F:G,2,FALSE) -> 3.03 | D127: 1.1
A128: 2018-04-03 | B128: =VLOOKUP($A128,Bloomberg!K:L,2,FALSE) -> 4.12 | C128: =VLOOKUP($A128,Bloomberg!F:G,2,FALSE) -> 3.02 | D128: 1.1
A129: 2018-04-02 | B129: =VLOOKUP($A129,Bloomberg!K:L,2,FALSE) -> 4.07 | C129: =VLOOKUP($A129,Bloomberg!F:G,2,FALSE) -> 2.97 | D129: 1.1
A130: 2018-03-29 | B130: =VLOOKUP($A130,Bloomberg!K:L,2,FALSE) -> 4.07 | C130: =VLOOKUP($A130,Bloomberg!F:G,2,FALSE) -> 2.97 | D130: 1.1
A131: 2018-03-28 | B131: =VLOOKUP($A131,Bloomberg!K:L,2,FALSE) -> 4.11 | C131: =VLOOKUP($A131,Bloomberg!F:G,2,FALSE) -> 3.01 | D131: 1.1
A132: 2018-03-27 | B132: =VLOOKUP($A132,Bloomberg!K:L,2,FALSE) -> 4.12 | C132: =VLOOKUP($A132,Bloomberg!F:G,2,FALSE) -> 3.03 | D132: 1.09
A133: 2018-03-26 | B133: =VLOOKUP($A133,Bloomberg!K:L,2,FALSE) -> 4.15 | C133: =VLOOKUP($A133,Bloomberg!F:G,2,FALSE) -> 3.08 | D133: 1.07
A134: 2018-03-23 | B134: =VLOOKUP($A134,Bloomberg!K:L,2,FALSE) -> 4.15 | C134: =VLOOKUP($A134,Bloomberg!F:G,2,FALSE) -> 3.06 | D134: 1.09
A135: 2018-03-22 | B135: =VLOOKUP($A135,Bloomberg!K:L,2,FALSE) -> 4.13 | C135: =VLOOKUP($A135,Bloomberg!F:G,2,FALSE) -> 3.06 | D135: 1.07
A136: 2018-03-21 | B136: =VLOOKUP($A136,Bloomberg!K:L,2,FALSE) -> 4.18 | C136: =VLOOKUP($A136,Bloomberg!F:G,2,FALSE) -> 3.12 | D136: 1.06
A137: 2018-03-20 | B137: =VLOOKUP($A137,Bloomberg!K:L,2,FALSE) -> 4.16 | C137: =VLOOKUP($A137,Bloomberg!F:G,2,FALSE) -> 3.12 | D137: 1.04
A138: 2018-03-19 | B138: =VLOOKUP($A138,Bloomberg!K:L,2,FALSE) -> 4.12 | C138: =VLOOKUP($A138,Bloomberg!F:G,2,FALSE) -> 3.09 | D138: 1.03
A139: 2018-03-16 | B139: =VLOOKUP($A139,Bloomberg!K:L,2,FALSE) -> 4.12 | C139: =VLOOKUP($A139,Bloomberg!F:G,2,FALSE) -> 3.08 | D139: 1.04
A140: 2018-03-15 | B140: =VLOOKUP($A140,Bloomberg!K:L,2,FALSE) -> 4.1 | C140: =VLOOKUP($A140,Bloomberg!F:G,2,FALSE) -> 3.05 | D140: 1.05
A141: 2018-03-14 | B141: =VLOOKUP($A141,Bloomberg!K:L,2,FALSE) -> 4.1 | C141: =VLOOKUP($A141,Bloomberg!F:G,2,FALSE) -> 3.05 | D141: 1.05
A142: 2018-03-13 | B142: =VLOOKUP($A142,Bloomberg!K:L,2,FALSE) -> 4.13 | C142: =VLOOKUP($A142,Bloomberg!F:G,2,FALSE) -> 3.1 | D142: 1.03
A143: 2018-03-12 | B143: =VLOOKUP($A143,Bloomberg!K:L,2,FALSE) -> 4.15 | C143: =VLOOKUP($A143,Bloomberg!F:G,2,FALSE) -> 3.13 | D143: 1.02
A144: 2018-03-09 | B144: =VLOOKUP($A144,Bloomberg!K:L,2,FALSE) -> 4.18 | C144: =VLOOKUP($A144,Bloomberg!F:G,2,FALSE) -> 3.16 | D144: 1.02
A145: 2018-03-08 | B145: =VLOOKUP($A145,Bloomberg!K:L,2,FALSE) -> 4.15 | C145: =VLOOKUP($A145,Bloomberg!F:G,2,FALSE) -> 3.13 | D145: 1.02
A146: 2018-03-07 | B146: =VLOOKUP($A146,Bloomberg!K:L,2,FALSE) -> 4.16 | C146: =VLOOKUP($A146,Bloomberg!F:G,2,FALSE) -> 3.15 | D146: 1.01
A147: 2018-03-06 | B147: =VLOOKUP($A147,Bloomberg!K:L,2,FALSE) -> 4.15 | C147: =VLOOKUP($A147,Bloomberg!F:G,2,FALSE) -> 3.14 | D147: 1.01
A148: 2018-03-05 | B148: =VLOOKUP($A148,Bloomberg!K:L,2,FALSE) -> 4.14 | C148: =VLOOKUP($A148,Bloomberg!F:G,2,FALSE) -> 3.16 | D148: 0.98
A149: 2018-03-02 | B149: =VLOOKUP($A149,Bloomberg!K:L,2,FALSE) -> 4.12 | C149: =VLOOKUP($A149,Bloomberg!F:G,2,FALSE) -> 3.14 | D149: 0.98
A150: 2018-03-01 | B150: =VLOOKUP($A150,Bloomberg!K:L,2,FALSE) -> 4.07 | C150: =VLOOKUP($A150,Bloomberg!F:G,2,FALSE) -> 3.09 | D150: 0.98
A151: 2018-02-28 | B151: =VLOOKUP($A151,Bloomberg!K:L,2,FALSE) -> 4.1 | C151: =VLOOKUP($A151,Bloomberg!F:G,2,FALSE) -> 3.13 | D151: 0.97
A152: 2018-02-27 | B152: =VLOOKUP($A152,Bloomberg!K:L,2,FALSE) -> 4.14 | C152: =VLOOKUP($A152,Bloomberg!F:G,2,FALSE) -> 3.17 | D152: 0.97
A153: 2018-02-26 | B153: =VLOOKUP($A153,Bloomberg!K:L,2,FALSE) -> 4.12 | C153: =VLOOKUP($A153,Bloomberg!F:G,2,FALSE) -> 3.15 | D153: 0.97
A154: 2018-02-23 | B154: =VLOOKUP($A154,Bloomberg!K:L,2,FALSE) -> 4.12 | C154: =VLOOKUP($A154,Bloomberg!F:G,2,FALSE) -> 3.16 | D154: 0.96
A155: 2018-02-22 | B155: =VLOOKUP($A155,Bloomberg!K:L,2,FALSE) -> 4.16 | C155: =VLOOKUP($A155,Bloomberg!F:G,2,FALSE) -> 3.21 | D155: 0.95
A156: 2018-02-21 | B156: =VLOOKUP($A156,Bloomberg!K:L,2,FALSE) -> 4.18 | C156: =VLOOKUP($A156,Bloomberg!F:G,2,FALSE) -> 3.22 | D156: 0.96
A157: 2018-02-20 | B157: =VLOOKUP($A157,Bloomberg!K:L,2,FALSE) -> 4.11 | C157: =VLOOKUP($A157,Bloomberg!F:G,2,FALSE) -> 3.15 | D157: 0.96
A158: 2018-02-16 | B158: =VLOOKUP($A158,Bloomberg!K:L,2,FALSE) -> 4.1 | C158: =VLOOKUP($A158,Bloomberg!F:G,2,FALSE) -> 3.13 | D158: 0.97
A159: 2018-02-15 | B159: =VLOOKUP($A159,Bloomberg!K:L,2,FALSE) -> 4.1 | C159: =VLOOKUP($A159,Bloomberg!F:G,2,FALSE) -> 3.15 | D159: 0.95
A160: 2018-02-14 | B160: =VLOOKUP($A160,Bloomberg!K:L,2,FALSE) -> 4.13 | C160: =VLOOKUP($A160,Bloomberg!F:G,2,FALSE) -> 3.18 | D160: 0.95
A161: 2018-02-13 | B161: =VLOOKUP($A161,Bloomberg!K:L,2,FALSE) -> 4.08 | C161: =VLOOKUP($A161,Bloomberg!F:G,2,FALSE) -> 3.11 | D161: 0.97
A162: 2018-02-12 | B162: =VLOOKUP($A162,Bloomberg!K:L,2,FALSE) -> 4.08 | C162: =VLOOKUP($A162,Bloomberg!F:G,2,FALSE) -> 3.14 | D162: 0.94
A163: 2018-02-09 | B163: =VLOOKUP($A163,Bloomberg!K:L,2,FALSE) -> 4.08 | C163: =VLOOKUP($A163,Bloomberg!F:G,2,FALSE) -> 3.14 | D163: 0.94
A164: 2018-02-08 | B164: =VLOOKUP($A164,Bloomberg!K:L,2,FALSE) -> 4.08 | C164: =VLOOKUP($A164,Bloomberg!F:G,2,FALSE) -> 3.14 | D164: 0.94
A165: 2018-02-07 | B165: =VLOOKUP($A165,Bloomberg!K:L,2,FALSE) -> 4.06 | C165: =VLOOKUP($A165,Bloomberg!F:G,2,FALSE) -> 3.12 | D165: 0.94
A166: 2018-02-06 | B166: =VLOOKUP($A166,Bloomberg!K:L,2,FALSE) -> 3.99 | C166: =VLOOKUP($A166,Bloomberg!F:G,2,FALSE) -> 3.06 | D166: 0.93
A167: 2018-02-05 | B167: =VLOOKUP($A167,Bloomberg!K:L,2,FALSE) -> 4.01 | C167: =VLOOKUP($A167,Bloomberg!F:G,2,FALSE) -> 3.04 | D167: 0.97
A168: 2018-02-02 | B168: =VLOOKUP($A168,Bloomberg!K:L,2,FALSE) -> 4.04 | C168: =VLOOKUP($A168,Bloomberg!F:G,2,FALSE) -> 3.08 | D168: 0.96
A169: 2018-02-01 | B169: =VLOOKUP($A169,Bloomberg!K:L,2,FALSE) -> 3.96 | C169: =VLOOKUP($A169,Bloomberg!F:G,2,FALSE) -> 3.01 | D169: 0.95
A170: 2018-01-31 | B170: =VLOOKUP($A170,Bloomberg!K:L,2,FALSE) -> 3.91 | C170: =VLOOKUP($A170,Bloomberg!F:G,2,FALSE) -> 2.95 | D170: 0.96
A171: 2018-01-30 | B171: =VLOOKUP($A171,Bloomberg!K:L,2,FALSE) -> 3.94 | C171: =VLOOKUP($A171,Bloomberg!F:G,2,FALSE) -> 2.98 | D171: 0.96
A172: 2018-01-29 | B172: =VLOOKUP($A172,Bloomberg!K:L,2,FALSE) -> 3.91 | C172: =VLOOKUP($A172,Bloomberg!F:G,2,FALSE) -> 2.94 | D172: 0.97
A173: 2018-01-26 | B173: =VLOOKUP($A173,Bloomberg!K:L,2,FALSE) -> 3.88 | C173: =VLOOKUP($A173,Bloomberg!F:G,2,FALSE) -> 2.91 | D173: =B173-C173 -> 0.97
A174: 2018-01-25 | B174: =VLOOKUP($A174,Bloomberg!K:L,2,FALSE) -> 3.85 | C174: =VLOOKUP($A174,Bloomberg!F:G,2,FALSE) -> 2.89 | D174: 0.96
A175: 2018-01-24 | B175: =VLOOKUP($A175,Bloomberg!K:L,2,FALSE) -> 3.91 | C175: =VLOOKUP($A175,Bloomberg!F:G,2,FALSE) -> 2.93 | D175: 0.98
A176: 2018-01-23 | B176: =VLOOKUP($A176,Bloomberg!K:L,2,FALSE) -> 3.88 | C176: =VLOOKUP($A176,Bloomberg!F:G,2,FALSE) -> 2.9 | D176: 0.98
A177: 2018-01-22 | B177: =VLOOKUP($A177,Bloomberg!K:L,2,FALSE) -> 3.9 | C177: =VLOOKUP($A177,Bloomberg!F:G,2,FALSE) -> 2.93 | D177: 0.97
A178: 2018-01-19 | B178: =VLOOKUP($A178,Bloomberg!K:L,2,FALSE) -> 3.89 | C178: =VLOOKUP($A178,Bloomberg!F:G,2,FALSE) -> 2.91 | D178: 0.98
A179: 2018-01-18 | B179: =VLOOKUP($A179,Bloomberg!K:L,2,FALSE) -> 3.87 | C179: =VLOOKUP($A179,Bloomberg!F:G,2,FALSE) -> 2.9 | D179: 0.97
A180: 2018-01-17 | B180: =VLOOKUP($A180,Bloomberg!K:L,2,FALSE) -> 3.83 | C180: =VLOOKUP($A180,Bloomberg!F:G,2,FALSE) -> 2.84 | D180: 0.99
A181: 2018-01-16 | B181: =VLOOKUP($A181,Bloomberg!K:L,2,FALSE) -> 3.82 | C181: =VLOOKUP($A181,Bloomberg!F:G,2,FALSE) -> 2.83 | D181: 0.99
A182: 2018-01-12 | B182: =VLOOKUP($A182,Bloomberg!K:L,2,FALSE) -> 3.84 | C182: =VLOOKUP($A182,Bloomberg!F:G,2,FALSE) -> 2.85 | D182: 0.99
A183: 2018-01-11 | B183: =VLOOKUP($A183,Bloomberg!K:L,2,FALSE) -> 3.84 | C183: =VLOOKUP($A183,Bloomberg!F:G,2,FALSE) -> 2.91 | D183: 0.93
A184: 2018-01-10 | B184: =VLOOKUP($A184,Bloomberg!K:L,2,FALSE) -> 3.88 | C184: =VLOOKUP($A184,Bloomberg!F:G,2,FALSE) -> 2.88 | D184: 1
A185: 2018-01-09 | B185: =VLOOKUP($A185,Bloomberg!K:L,2,FALSE) -> 3.88 | C185: =VLOOKUP($A185,Bloomberg!F:G,2,FALSE) -> 2.88 | D185: 1
A186: 2018-01-08 | B186: =VLOOKUP($A186,Bloomberg!K:L,2,FALSE) -> 3.82 | C186: =VLOOKUP($A186,Bloomberg!F:G,2,FALSE) -> 2.81 | D186: 1.01
A187: 2018-01-05 | B187: =VLOOKUP($A187,Bloomberg!K:L,2,FALSE) -> 3.82 | C187: =VLOOKUP($A187,Bloomberg!F:G,2,FALSE) -> 2.81 | D187: 1.01
A188: 2018-01-04 | B188: =VLOOKUP($A188,Bloomberg!K:L,2,FALSE) -> 3.79 | C188: =VLOOKUP($A188,Bloomberg!F:G,2,FALSE) -> 2.79 | D188: 1
A189: 2018-01-03 | B189: =VLOOKUP($A189,Bloomberg!K:L,2,FALSE) -> 3.79 | C189: =VLOOKUP($A189,Bloomberg!F:G,2,FALSE) -> 2.78 | D189: 1.01
A190: 2018-01-02 | B190: =VLOOKUP($A190,Bloomberg!K:L,2,FALSE) -> 3.82 | C190: =VLOOKUP($A190,Bloomberg!F:G,2,FALSE) -> 2.81 | D190: 1.01
A191: 2017-12-29 | B191: =VLOOKUP($A191,Bloomberg!K:L,2,FALSE) -> 3.76 | C191: =VLOOKUP($A191,Bloomberg!F:G,2,FALSE) -> 2.74 | D191: 1.02
A192: 2017-12-28 | B192: =VLOOKUP($A192,Bloomberg!K:L,2,FALSE) -> 3.77 | C192: =VLOOKUP($A192,Bloomberg!F:G,2,FALSE) -> 2.75 | D192: 1.02
A193: 2017-12-27 | B193: =VLOOKUP($A193,Bloomberg!K:L,2,FALSE) -> 3.76 | C193: =VLOOKUP($A193,Bloomberg!F:G,2,FALSE) -> 2.75 | D193: 1.01
A194: 2017-12-26 | B194: =VLOOKUP($A194,Bloomberg!K:L,2,FALSE) -> 3.83 | C194: =VLOOKUP($A194,Bloomberg!F:G,2,FALSE) -> 2.82 | D194: 1.01
A195: 2017-12-22 | B195: =VLOOKUP($A195,Bloomberg!K:L,2,FALSE) -> 3.85 | C195: =VLOOKUP($A195,Bloomberg!F:G,2,FALSE) -> 2.83 | D195: 1.02
A196: 2017-12-21 | B196: =VLOOKUP($A196,Bloomberg!K:L,2,FALSE) -> 3.84 | C196: =VLOOKUP($A196,Bloomberg!F:G,2,FALSE) -> 2.84 | D196: 1
A197: 2017-12-20 | B197: =VLOOKUP($A197,Bloomberg!K:L,2,FALSE) -> 3.89 | C197: =VLOOKUP($A197,Bloomberg!F:G,2,FALSE) -> 2.88 | D197: 1.01
A198: 2017-12-19 | B198: =VLOOKUP($A198,Bloomberg!K:L,2,FALSE) -> 3.85 | C198: =VLOOKUP($A198,Bloomberg!F:G,2,FALSE) -> 2.82 | D198: 1.03
A199: 2017-12-18 | B199: =VLOOKUP($A199,Bloomberg!K:L,2,FALSE) -> 3.77 | C199: =VLOOKUP($A199,Bloomberg!F:G,2,FALSE) -> 2.74 | D199: 1.03
A200: 2017-12-15 | B200: =VLOOKUP($A200,Bloomberg!K:L,2,FALSE) -> 3.72 | C200: =VLOOKUP($A200,Bloomberg!F:G,2,FALSE) -> 2.68 | D200: 1.04
... 739 more rows
